{"text_format":"1","workbook":"xlsx","n_sheets":6,"sheets":["1 Specifikation","1.1 Specifikation utökad","2 Uppdragsbeskrivning","3 Avtalstecknande","Admin","SysAdmin"],"not_rendered":{"charts":0,"images":2,"macros":1,"external_links":1,"defined_names":151,"comments":0,"pivot_tables":0},"unopened":[],"bounds":{"document_bytes":16777216,"sheet_cells":100000,"rows_first":2000,"rows_last":500,"rows_between":2000,"halvings":0,"cell_chars":16384,"cell_head_chars":4096},"cells_cut":0,"cells_raw":0,"read":"whole","date_system":"1900"}

{"sheet":"1 Specifikation","index":0,"n_rows":295,"n_cols":38,"rows_kept":295,"cut":false,"hidden":false,"merged":[[86,2,88,2],[183,1,183,2],[183,3,183,6],[183,7,183,10],[183,12,183,13],[87,22,88,23],[81,16,83,19],[81,9,83,11],[91,5,93,13],[182,7,182,10],[180,1,180,2],[86,3,88,4],[81,12,83,13],[86,5,88,6],[85,11,85,13],[86,11,88,13],[125,22,125,23],[116,22,116,23],[160,1,160,2],[133,1,133,9],[160,3,160,6],[107,16,109,19],[106,16,106,19],[101,16,101,19],[66,1,66,5],[96,9,96,13],[97,9,99,13],[97,5,97,8],[97,1,99,1],[81,5,81,8],[82,5,83,6],[82,7,83,8],[74,3,74,4],[74,5,74,6],[74,7,74,8],[80,3,80,4],[80,5,80,6],[80,7,80,8],[80,9,80,11],[80,12,80,13],[86,7,88,8],[76,5,78,6],[69,9,72,13],[81,1,83,1],[96,7,96,8],[81,2,83,2],[81,3,83,4],[86,1,88,1],[91,16,93,21],[76,7,78,8],[75,9,78,13],[75,24,78,25],[75,16,78,19],[80,16,80,19],[80,24,80,25],[85,9,85,10],[86,9,88,10],[85,16,85,21],[85,24,85,25],[90,16,90,21],[90,24,90,25],[91,24,93,25],[92,22,93,23],[69,16,72,19],[74,23,78,23],[80,23,83,23],[81,24,83,25],[86,24,88,25],[86,16,88,21],[85,7,85,8],[68,23,72,23],[68,16,68,19],[72,20,72,21],[69,24,72,25],[189,7,189,10],[120,1,121,1],[112,2,113,2],[90,3,90,4],[101,3,101,4],[102,3,104,4],[106,3,106,4],[91,3,93,4],[101,9,101,13],[102,9,104,13],[95,1,95,3],[107,9,109,13],[115,5,115,13],[111,5,111,13],[96,3,96,4],[96,5,96,6],[90,5,90,13],[91,2,93,2],[91,1,93,1],[97,3,99,4],[106,5,106,6],[106,7,106,8],[175,1,175,2],[173,1,173,2],[191,3,191,6],[190,7,190,10],[191,7,191,10],[192,7,192,10],[193,7,193,10],[192,12,192,13],[212,1,214,13],[190,12,190,13],[190,1,190,2],[192,3,192,6],[204,11,204,12],[190,3,190,6],[193,1,193,2],[196,12,196,13],[197,12,197,13],[193,12,193,13],[159,7,159,13],[161,7,161,13],[162,7,162,13],[163,7,163,13],[148,1,148,2],[153,7,153,13],[158,7,158,13],[160,7,160,13],[162,1,162,2],[156,7,156,13],[157,1,157,2],[157,3,157,6],[157,7,157,13],[154,7,154,13],[156,1,156,2],[159,3,159,6],[161,1,161,2],[161,3,161,6],[155,7,155,13],[158,1,158,2],[149,1,149,2],[234,24,283,28],[207,19,207,20],[102,16,104,19],[124,24,125,25],[113,20,113,23],[115,22,115,23],[119,22,119,23],[115,16,115,21],[123,16,123,21],[116,16,117,21],[124,16,125,21],[115,24,115,25],[120,22,120,23],[119,24,119,25],[244,16,244,19],[214,26,214,28],[200,19,202,24],[203,23,204,24],[205,23,207,24],[106,23,109,23],[123,22,123,23],[123,24,123,25],[174,17,174,24],[155,17,155,24],[181,1,181,2],[177,7,177,10],[178,7,178,10],[179,7,179,10],[180,7,180,10],[181,7,181,10],[186,3,186,6],[179,1,179,2],[178,1,178,2],[182,1,182,2],[177,3,177,6],[178,3,178,6],[179,3,179,6],[180,3,180,6],[177,1,177,2],[189,3,189,6],[278,16,278,23],[279,16,279,23],[205,21,205,22],[206,19,206,20],[219,1,219,13],[230,1,230,8],[232,16,232,19],[222,21,222,22],[232,1,232,8],[229,1,229,5],[233,1,233,8],[205,19,205,20],[252,1,252,8],[252,16,252,19],[211,16,211,17],[211,18,211,19],[208,19,208,20],[205,11,205,12],[220,1,226,13],[222,19,222,20],[221,19,221,20],[221,21,221,22],[189,1,189,2],[213,18,214,19],[239,1,239,8],[280,1,280,8],[247,1,247,8],[278,1,278,8],[277,1,277,8],[258,1,258,8],[259,1,261,8],[263,1,263,5],[253,1,253,8],[254,1,254,8],[255,1,255,8],[279,1,279,8],[200,18,202,18],[200,16,202,17],[196,18,196,19],[195,12,195,13],[189,12,189,13],[203,21,204,22],[203,18,204,18],[203,17,204,17],[196,20,196,21],[191,12,191,13],[192,17,192,19],[193,17,193,19],[192,20,192,24],[193,20,193,24],[196,22,196,23],[176,1,176,2],[186,1,186,2],[175,7,175,10],[175,3,175,6],[184,3,184,6],[175,12,175,13],[178,17,178,24],[177,12,177,13],[181,12,181,13],[179,12,179,13],[181,17,181,24],[175,17,175,24],[180,12,180,13],[180,17,180,24],[179,17,179,24],[178,12,178,13],[182,17,182,24],[182,12,182,13],[177,17,177,24],[176,12,176,13],[176,17,176,24],[181,3,181,6],[182,3,182,6],[176,3,176,6],[176,7,176,10],[68,24,68,25],[74,24,74,25],[294,20,294,23],[291,16,292,23],[288,16,288,23],[287,16,287,23],[290,16,290,23],[286,16,286,23],[238,16,238,19],[203,19,204,20],[208,21,208,22],[219,19,219,20],[226,21,226,22],[223,18,224,20],[220,21,220,22],[206,21,206,22],[225,19,225,20],[207,21,207,22],[284,16,285,23],[219,21,219,22],[225,21,225,22],[277,16,277,23],[280,16,280,23],[2,1,2,4],[2,16,2,18],[2,20,2,23],[3,1,4,8],[3,16,4,23],[7,1,7,6],[7,7,7,8],[7,16,7,21],[7,22,7,23],[5,1,5,8],[6,1,6,8],[5,9,6,15],[3,9,3,15],[4,9,4,15],[7,9,7,15],[8,16,8,21],[11,16,11,19],[35,1,35,2],[30,1,30,2],[8,1,8,6],[8,7,8,8],[8,22,8,23],[9,1,9,3],[9,4,9,6],[16,4,16,8],[16,19,16,23],[16,16,16,18],[12,20,12,21],[10,16,10,19],[11,20,11,21],[11,22,11,23],[12,16,12,19],[11,1,11,3],[12,1,12,3],[10,20,10,23],[12,22,12,23],[13,16,13,19],[16,1,16,3],[15,1,15,3],[9,7,9,8],[13,1,13,3],[12,7,12,8],[12,4,12,6],[9,16,9,19],[13,20,13,23],[35,6,35,7],[32,3,32,4],[33,1,33,2],[9,20,9,23],[10,4,10,6],[10,7,10,8],[11,4,11,6],[11,7,11,8],[10,1,10,3],[13,4,13,8],[14,4,14,8],[32,1,32,2],[15,16,15,18],[30,3,30,4],[27,16,27,23],[15,4,15,8],[15,19,15,23],[33,3,33,4],[62,1,63,1],[53,2,53,3],[54,2,54,3],[55,2,55,3],[14,16,14,19],[14,20,14,23],[26,16,26,23],[14,1,14,3],[36,1,36,2],[36,6,36,7],[29,6,29,8],[29,1,29,2],[56,2,56,3],[57,2,57,3],[58,2,58,3],[59,2,59,3],[60,2,60,3],[62,2,63,11],[44,2,44,3],[45,2,45,3],[46,2,46,3],[47,2,47,3],[48,2,48,3],[19,16,23,23],[49,2,49,3],[50,2,50,3],[51,2,51,3],[52,2,52,3],[38,1,38,3],[39,2,39,3],[40,2,40,3],[41,2,41,3],[42,2,42,3],[43,2,43,3],[27,1,27,8],[30,6,30,8],[29,3,29,4],[67,16,67,17],[75,5,75,8],[68,3,68,4],[69,1,72,1],[69,2,72,2],[69,3,72,4],[68,5,68,6],[68,7,68,8],[69,5,69,8],[70,5,70,6],[70,7,70,8],[72,5,72,6],[72,7,72,8],[71,5,71,8],[75,1,78,1],[75,3,78,4],[75,2,78,2],[74,9,74,13],[74,16,74,19],[68,9,68,13],[35,9,35,10],[164,1,164,2],[164,3,164,6],[154,1,154,2],[154,3,154,6],[162,3,162,6],[159,1,159,2],[155,1,155,2],[155,3,155,6],[156,3,156,6],[163,3,163,6],[163,1,163,2],[174,12,174,13],[172,7,172,10],[165,1,165,2],[174,1,174,2],[166,1,166,2],[173,3,173,6],[171,1,171,4],[174,7,174,10],[174,3,174,6],[166,3,166,6],[166,7,166,13],[167,3,167,6],[167,7,167,13],[172,1,172,2],[168,1,168,2],[168,3,168,6],[173,7,173,10],[170,7,170,9],[172,3,172,6],[165,7,165,13],[167,1,167,2],[187,12,187,13],[188,1,188,2],[188,12,188,13],[186,12,186,13],[184,7,184,10],[185,7,185,10],[186,7,186,10],[187,7,187,10],[188,7,188,10],[187,3,187,6],[185,12,185,13],[185,3,185,6],[184,12,184,13],[188,3,188,6],[185,1,185,2],[184,1,184,2],[69,26,69,43],[149,3,149,6],[173,17,173,24],[172,12,172,13],[172,17,172,24],[137,11,140,13],[170,11,170,13],[168,7,168,13],[164,7,164,13],[158,3,158,6],[173,12,173,13],[166,17,166,24],[167,17,167,24],[168,17,168,24],[148,17,148,24],[158,17,158,24],[159,17,159,24],[160,17,160,24],[161,17,161,24],[162,17,162,24],[164,17,164,24],[163,17,163,24],[165,17,165,24],[165,3,165,6],[157,17,157,24],[8,9,8,15],[9,9,9,15],[286,1,286,8],[191,1,191,2],[196,1,196,2],[192,1,192,2],[244,1,244,8],[234,1,234,8],[235,1,235,8],[246,1,246,8],[249,1,249,8],[241,1,241,8],[240,1,240,8],[238,1,238,8],[264,1,264,8],[265,1,274,8],[206,1,206,3],[193,3,193,6],[248,1,248,8],[245,1,245,8],[150,1,150,2],[154,17,154,24],[187,1,187,2],[96,23,99,23],[119,16,119,19],[120,16,121,19],[120,20,120,21],[129,24,129,25],[107,24,109,25],[112,24,113,25],[101,7,101,8],[112,16,113,19],[116,5,117,13],[96,24,96,25],[120,24,121,25],[111,16,111,19],[117,22,117,23],[97,24,99,25],[102,24,104,25],[101,24,101,25],[106,24,106,25],[111,24,111,25],[121,20,121,21],[97,16,99,19],[96,16,96,19],[153,1,153,2],[150,7,150,13],[101,5,101,6],[156,17,156,24],[130,21,130,23],[131,22,132,25],[127,24,127,25],[116,24,117,25],[150,3,150,6],[106,9,106,13],[121,22,121,23],[112,5,113,13],[101,23,104,23],[149,17,149,24],[151,3,151,6],[152,1,152,2],[152,3,152,6],[111,3,111,4],[116,3,117,4],[150,17,150,24],[151,17,151,24],[152,17,152,24],[153,17,153,24],[124,22,124,23],[148,3,148,6],[137,1,137,3],[138,1,138,9],[124,5,125,13],[124,3,125,4],[135,4,135,8],[143,1,144,9],[140,1,140,9],[149,7,149,13],[151,7,151,13],[152,7,152,13],[153,3,153,6],[132,1,132,9],[129,1,129,5],[139,1,139,3],[148,7,148,13],[151,1,151,2],[120,3,121,3],[146,1,146,5],[142,1,142,9],[124,1,125,1],[124,2,125,2],[123,3,123,4],[112,3,113,4],[120,4,121,4],[119,7,119,13],[120,7,121,13],[119,5,119,6],[120,5,121,6],[123,5,123,13],[102,5,102,8],[103,5,104,6],[103,7,104,8],[107,5,107,8],[108,5,109,6],[108,7,109,8],[102,1,104,1],[107,2,109,2],[97,2,99,2],[102,2,104,2],[107,3,109,4],[98,5,99,6],[98,7,99,8],[191,20,191,24],[183,17,183,19],[184,17,184,19],[185,17,185,19],[186,17,186,19],[187,17,187,19],[188,17,188,19],[189,17,189,19],[190,17,190,19],[191,17,191,19],[19,1,23,8],[183,20,183,24],[184,20,184,24],[185,20,185,24],[186,20,186,24],[187,20,187,24],[188,20,188,24],[189,20,189,24],[190,20,190,24],[36,9,36,10],[35,3,35,4],[36,3,36,4],[32,6,32,8],[33,6,33,7],[67,1,67,6],[147,1,147,6],[115,3,115,4],[107,1,109,1],[112,1,113,1],[116,1,117,1],[85,3,85,4],[85,5,85,6],[120,2,121,2],[116,2,117,2]]}
[]
[null,null,null,null,null,null,null,null,null,null,null,null,null,null,null,{"$f":"\"Avrop nr: \"&B15","v":"Avrop nr: "},null,null,null,null,null,null,null,{"$f":"\"Avrop nr: \"&B15","v":"Avrop nr: "}]
[null,"Avropsförfrågan",null,null,null,null,null,null,null,null,null,null,null,null,null,null,"Avropssvar",null,null,null,{"$f":"IF(LarmStatus,\"Minst ett av de obligatoriska kraven är inte ifyllda eller besvarade med Nej\",\"\")","v":"Minst ett av de obligatoriska kraven är inte ifyllda eller besvarade med Nej"},null,null,null,null,null,null,null,null,null,null,null,null,null,{"$f":"OR(AI4:AI940)","v":true}]
[null,"Instruktion till avropande organisation: \nSpara ned blanketten på din dator.\nGulmarkerade rutor fylls i av avropare innan blanketten skickas.\n\nBlanketten skickas med e-post till antagna leverantörer inom aktuellt avropsområde.\nSe vidare \"Vägledning vid avrop\".",null,null,null,null,null,null,null,"Ramavtalsområde",null,null,null,null,null,null,"Instruktion till leverantör:\nBlåmarkerade rutor fylls i av leverantören.\nLäs och kontrollera obligatoriska krav.\nReturnera blanketten med e-post till avropande organisation (oavsett Ja eller Nej).\nMer information finns under vissa rubriker"]
[null,null,null,null,null,null,null,null,null,"Bevakningstjänster och larmcentraltjänster"]
[null,"Steg 1 - Administrativa uppgifter",null,null,null,null,null,null,null,"Avrop med förnyad konkurrensutsättning\nKammarkollegiets diarienr. "]
[null,"Uppgifter om avropande organisation",null,null,null,null,null,null,null,null,null,null,null,null,null,null,"Uppgifter om Ramavtalsleverantören"]
[null,"Myndighet/Organisation (namn)",null,null,null,null,null,"Organisationsnummer",null,"23.3-4138-2018",null,null,null,null,null,null,"Ramavtalsleverantörens namn",null,null,null,null,null,"Organisationsnummer"]
[null,null,null,null,null,null,null,null,null,"Avropsblankett"]
[null,"Postadress",null,null,"Postnummer",null,null,"Ort",null,"Version 2.12  2021-09-21",null,null,null,null,null,null,"Kontaktperson",null,null,null,"E-post"]
[]
[null,"Avdelning, enhet etc",null,null,"Kontaktperson",null,null,"Telefon",null,null,null,null,null,null,null,null,"Postadress",null,null,null,"Postnummer",null,"Ort"]
[]
[null,"Referens/diarienr för avropet",null,null,"E-post",null,null,null,null,null,null,null,null,null,null,null,"Telefon",null,null,null,"Offertnummer el likn för detta avropssvar"]
[null,null,null,null,"     "]
[null,null,null,null,null,null,null,null,null,null,null,null,null,null,null,null,"Avropssvar lämnas Ja/Nej",null,null,"Om Nej, motivering"]
[null,null,null,null,"     ",null,null,null,null,null,null,null,null,null,null,null,"Ja",null,null,null,null,null,null,null,null,null,null,null,null,null,null,null,null,null,{"$f":"IF(AND(Q17=0,Q17<>\"Ja\"),TRUE,FALSE)","v":false}]
[]
[null,"Förnyad kontroll av leverantörskrav (ESPD)",null,null,null,null,null,null,null,null,null,null,null,null,null,null,"Leverantörskrav (ESPD) - Ramavtalsleverantörens intygande"]
[null,"Av 15 kap. 1 samt 4 §§ LOU framgår att ramavtalsleverantören ska lämna en ny egenförsäkran samt att en ny kontroll av kvalificeringskrav och uteslutningsgrunder ska genomföras vid avrop genom förnyad konkurrensutsättning. Kammarkollegiet ansvarar för denna kontrollskyldighet genom att löpande genomföra leverantörsprövning under hela ramavtalsperioden. \nKontrollskyldigheten bör också hanteras så att ramavtalsleverantören i sitt avropssvar bekräftar att i ramavtalsupphandlingen lämnad egenförsäkran fortfarande är korrekt, samt att ingivna bevis fortfarande är aktuella. Avropande myndighet kan själv begära in ett eller flera bevis enligt punkten 2 till höger.",null,null,null,null,null,null,null,null,null,null,null,null,null,null,"Genom att lämna avropssvar, bekräftar ramavtalsleverantören följande:\n1.\tAtt i ramavtalsupphandlingen lämnad egenförsäkran fortfarande är korrekt.\n2.\tAtt i ramavtalsupphandlingen ingivna bevis, såsom Sanningsförsäkran avseende uteslutningsgrunder (gällande leverantören och ev. åberopade företag) fortfarande aktuella.\n3.\tAtt ramavtalsleverantören har säkerställt att ev. åberopade företag inte omfattas av någon uteslutningsgrund.\nMed \"åberopat företag\" avses specifikt en underleverantör som har åberopats i ramavtalsupphandlingen för att uppfylla krav på ekonomisk, teknisk och yrkesmässig kapacitet”."]
[]
[]
[]
[]
[]
[null,null,null,null,null,null,null,null,null,null,null,null,null,null,null,null,"Uppgift om underleverantörer (i förekommande fall)"]
[null,"Information om avropet, t ex syfte och omfattning",null,null,null,null,null,null,null,null,null,null,null,null,null,null,"Redogör för vilka underleverantör/er inkl. org. nr. som kommer att medverka till fullgörandet av kontraktet samt vilka delar underleverantörerna fullgör. \nMed Underleverantör avses en juridisk eller fysisk person som Ramavtalsleverantören anlitar för att fullgöra hela eller delar av det åtagande som följer av Ramavtalet och Kontrakt. \n"]
[]
[]
[null,"Sista dag för att ställa frågor",null,"Sista dag för \nsvar på frågor",null,null,"E-post för frågor (om annan än ovan)"]
[]
[]
[null,"Sista dag för avropssvar",null,"Avropssvarets giltighetstid",null,null,"Avtalsspärr"]
[null,null,null,null,null,null,"Avtalsspärr kommer att iakttas?"]
[]
[null,"Kontraktets giltighetstid (fr.o.m. datum)",null,"Kontraktets giltighetstid (t.o.m. datum)",null,null,"Förlängningsoption\n(t.o.m. datum)",null,null,"Planerat startdatum för uppdraget"]
[]
[]
[null,"Ange region/regioner. Markera med ett \"X\" i de gula fälten bredvid respektive län."]
[null,{"$f":"Admin!J56","v":"Samtliga län"}]
[null,{"$f":"Admin!J57","v":"Blekinge län"}]
[null,{"$f":"Admin!J58","v":"Dalarnas län"}]
[null,{"$f":"Admin!J59","v":"Gotlands län"}]
[null,{"$f":"Admin!J60","v":"Gävleborgs län"}]
[null,{"$f":"Admin!J61","v":"Hallands län"}]
[null,{"$f":"Admin!J62","v":"Jämtlands län"}]
[null,{"$f":"Admin!J63","v":"Jönköpings län"}]
[null,{"$f":"Admin!J64","v":"Kalmar län"}]
[null,{"$f":"Admin!J65","v":"Kronobergs län"}]
[null,{"$f":"Admin!J66","v":"Norrbottens län"}]
[null,{"$f":"Admin!J67","v":"Skåne län"}]
[null,{"$f":"Admin!J68","v":"Stockholms län"}]
[null,{"$f":"Admin!J69","v":"Södermanlands län"}]
[null,{"$f":"Admin!J70","v":"Uppsala län"}]
[null,{"$f":"Admin!J71","v":"Värmlands län"}]
[null,{"$f":"Admin!J72","v":"Västerbottens län"}]
[null,{"$f":"Admin!J73","v":"Västernorrlands län"}]
[null,{"$f":"Admin!J74","v":"Västmanlands län"}]
[null,{"$f":"Admin!J75","v":"Västra Götalands län"}]
[null,{"$f":"Admin!J76","v":"Örebro län"}]
[null,{"$f":"Admin!J77","v":"Östergötlands län"}]
[]
[null,"Sammanställning regionsval",{"$f":"SammanstRegioner","v":""}]
[]
[]
[]
[null,"Steg 2 - Specifikation av tjänster"]
[null,"Ordinarie tjänster (om avropet omfattar flera objekt med olika förutsättningar kan flik 2 användas)",null,null,null,null,null,null,"",null,null,null,null,null,null,null,"Leverantörens svar"]
[null,"Tjänst","Ange om tjänsten ingår i avropet (Ja/Nej)","Följande ska anges för respektive tjänst",null,"Schemalagda timmar",null,"Ej schemalagda timmar (option)",null,"Kort beskrivning av tjänst eller referera till bilaga\nAnge tider för rondering",null,null,null,null,null,null,"Vid behov specificera tjänster, annan information eller hänvisa till bilaga.",null,null,null,"Enhet","Schemalagda timmar (exkl OB)","Ej schemalagda timmar (exkl OB)",null,"Beräknat pris per månad \n(OB-ersättning enligt kollektivavtal kan tillkomma)"]
[null,"Ronderande bevakning",null,"Beräknat antal timmar och ronder per månad",null,"Antal timmar / månad",null,null,null,null,null,null,null,null,null,null,null,null,null,null,"Timmar",{"$f":"IF(F71=\"\",\"\",F71)","v":""},{"$f":"IF(H71=\"\",\"\",H71)","v":""},null,{"$f":"IFERROR((V72+W72)+(W73*F73),0)","v":0}]
[null,null,null,null,null,null,null,null,null,null,null,null,null,null,null,null,null,null,null,null,"Timpris"]
[null,null,null,null,null,"Antal ronder / månad\n(1 / dag = 30,44 enligt schablon, ange annan frekvens om aktuellt)",null,null,null,null,null,null,null,null,null,null,null,null,null,null,"Summa",{"$f":"IFERROR(IF(V71*V70=0,0,V71*V70),0)","v":0},{"$f":"IFERROR(IF(W71*W70=0,0,W71*W70),0)","v":0}]
[null,null,null,null,null,30.44,null,null,null,null,null,null,null,null,null,null,null,null,null,null,"Pris framkörning per rond:"]
[]
[null,"Tjänst","Ange om tjänsten ingår i avropet (Ja/Nej)","Följande ska anges för respektive tjänst",null,"Schemalagda timmar",null,"Ej schemalagda timmar (option)",null,"Kort beskrivning av tjänst eller referera till bilaga",null,null,null,null,null,null,"Vid behov specificera tjänster, annan information eller hänvisa till bilaga.",null,null,null,"Enhet","Schemalagda timmar (exkl OB)","Ej schemalagda timmar (exkl OB)",null,"Beräknat pris per månad \n(OB-ersättning enligt kollektivavtal kan tillkomma)"]
[null,"Stationär bevakning",null,"Beräknat antal timmar per månad",null,"Antal timmar / månad",null,null,null,null,null,null,null,null,null,null,null,null,null,null,"Timmar",{"$f":"IF(F77=\"\",\"\",F77)","v":""},{"$f":"IF(H77=\"\",\"\",H77)","v":""},null,{"$f":"IFERROR((V78+W78),0)","v":0}]
[null,null,null,null,null,null,null,null,null,null,null,null,null,null,null,null,null,null,null,null,"Timpris"]
[null,null,null,null,null,null,null,null,null,null,null,null,null,null,null,null,null,null,null,null,"Summa",{"$f":"IFERROR(IF(V77*V76=0,0,V77*V76),0)","v":0},{"$f":"IFERROR(IF(W77*W76=0,0,W77*W76),0)","v":0}]
[]
[]
[null,"Tjänst","Ange om tjänsten ingår i avropet (Ja/Nej)","Följande ska anges för respektive tjänst",null,"Schemalagda timmar",null,"Ej schemalagda timmar (option)",null,"Kort beskrivning av tjänst eller referera till bilaga",null,null,"Stationär eller ronderande ordningsvakt (välj i lista)",null,null,null,"Vid behov specificera tjänster, annan information eller hänvisa till bilaga.",null,null,null,"Enhet","Schemalagda timmar (exkl OB)","Ej schemalagda timmar (exkl OB)",null,"Beräknat pris per månad \n(OB-ersättning enligt kollektivavtal kan tillkomma)"]
[null,"Ordningsvakter",null,"Beräknat antal timmar per månad.\nStationär eller ronderande ordningsvakt.",null,"Antal timmar/månad",null,null,null,null,null,null,null,null,null,null,null,null,null,null,"Timmar",{"$f":"IF(F83=\"\",\"\",F83)","v":""},{"$f":"IF(H83=\"\",\"\",H83)","v":""},null,{"$f":"IFERROR((V84+W84),0)","v":0}]
[null,null,null,null,null,null,null,null,null,null,null,null,null,null,null,null,null,null,null,null,"Timpris"]
[null,null,null,null,null,null,null,null,null,null,null,null,null,null,null,null,null,null,null,null,"Summa",{"$f":"IFERROR(IF(V83*V82=0,0,V83*V82),0)","v":0},{"$f":"IFERROR(IF(W83*W82=0,0,W83*W82),0)","v":0}]
[]
[null,"Tjänst","Ange om tjänsten ingår i avropet (Ja/Nej)","Följande ska anges för respektive tjänst",null,"Antal utryckningar/ månad",null,"Definitionen av inställelsetid (välj i lista):",null,"Ryck ska ske med x antal väktare (välj i lista):",null,"Kort beskrivning av tjänst eller referera till bilaga",null,null,null,null,"Vid behov specificera tjänster, annan information eller hänvisa till bilaga.",null,null,null,null,null,"Pris per utryckning en väktare (1)","Pris per utryckning flera väktare (2)","Beräknat pris per månad \n(OB-ersättning enligt kollektivavtal kan tillkomma)"]
[null,"Larmutryckning",null,"Beräknat antal utryckningar per månad, definition av inställelsetid samt om utryckning ska ske med en eller flera väktare.",null,null,null,null,null,null,null,null,null,null,null,null,null,null,null,null,null,null,null,null,{"$f":"IFERROR(IF($J$87=\"En väktare\",W87*F87,X87*F87),0)","v":0}]
[]
[]
[]
[null,"Tjänst","Ange om tjänsten ingår i avropet (Ja/Nej)","Följande ska anges för respektive tjänst",null,"Kort beskrivning av tjänst eller referera till bilaga",null,null,null,null,null,null,null,null,null,null,"Vid behov specificera tjänster, annan information eller hänvisa till bilaga.",null,null,null,null,null,"Pris per månad",null,"Beräknat pris per månad \n(OB-ersättning enligt kollektivavtal kan tillkomma)"]
[null,"Larmcentraltjänster",null,"Antal larmsystem. Beskriv typ av larm, överföring, sektioner etc.",null,null,null,null,null,null,null,null,null,null,null,null,null,null,null,null,null,null,null,null,{"$f":"IFERROR(W92,0)","v":0}]
[]
[]
[]
[null,"Tilläggstjänster"]
[null,"Tilläggstjänst","Ange om tjänsten ingår i avropet (Ja/Nej)","Följande ska anges för respektive tjänst",null,"Schemalagda timmar",null,"Ej schemalagda timmar (option)",null,"Kort beskrivning av tjänst eller referera till bilaga",null,null,null,null,null,null,"Vid behov specificera tjänster, annan information eller hänvisa till bilaga.",null,null,null,"Enhet","Schemalagda timmar (exkl OB)","Ej schemalagda timmar (exkl OB)",null,"Beräknat pris per månad \n(OB-ersättning enligt kollektivavtal kan tillkomma)"]
[null,"Skyddsvakter\n(om avropet omfattar flera objekt med olika förutsättningar kan flik 2 användas)",null,"Beräknat antal timmar per månad.",null,"Antal timmar/månad",null,null,null,null,null,null,null,null,null,null,null,null,null,null,"Timmar",{"$f":"IF(F99=\"\",\"\",F99)","v":""},{"$f":"IF(H99=\"\",\"\",H99)","v":""},null,{"$f":"IFERROR(SUM(V100:W100),0)","v":0}]
[null,null,null,null,null,null,null,null,null,null,null,null,null,null,null,null,null,null,null,null,"Timpris"]
[null,null,null,null,null,null,null,null,null,null,null,null,null,null,null,null,null,null,null,null,"Summa",{"$f":"IFERROR(IF(V99*V98=0,0,V99*V98),0)","v":0},{"$f":"IFERROR(IF(W99*W98=0,0,W99*W98),0)","v":0}]
[]
[null,"Tilläggstjänst","Ange om tjänsten ingår i avropet (Ja/Nej)","Följande ska anges för respektive tjänst",null,"Schemalagda timmar",null,"Ej schemalagda timmar (option)",null,"Kort beskrivning av tjänst eller referera till bilaga",null,null,null,null,null,null,"Vid behov specificera tjänster, annan information eller hänvisa till bilaga.",null,null,null,"Enhet","Schemalagda timmar (exkl OB)","Ej schemalagda timmar (exkl OB)",null,"Beräknat pris per månad \n(OB-ersättning enligt kollektivavtal kan tillkomma)"]
[null,"Bevakning av enskild person för dennes skydd",null,"Beräknat antal timmar per månad.",null,"Antal timmar/månad",null,null,null,null,null,null,null,null,null,null,null,null,null,null,"Timmar",{"$f":"IF(F104=\"\",\"\",F104)","v":""},{"$f":"IF(H104=\"\",\"\",H104)","v":""},null,{"$f":"IFERROR(SUM(V105:W105),0)","v":0}]
[null,null,null,null,null,null,null,null,null,null,null,null,null,null,null,null,null,null,null,null,"Timpris"]
[null,null,null,null,null,null,null,null,null,null,null,null,null,null,null,null,null,null,null,null,"Summa",{"$f":"IFERROR(IF(V104*V103=0,0,V104*V103),0)","v":0},{"$f":"IFERROR(IF(W104*W103=0,0,W104*W103),0)","v":0}]
[]
[null,"Tilläggstjänst","Ange om tjänsten ingår i avropet (Ja/Nej)","Följande ska anges för respektive tjänst",null,"Schemalagda timmar",null,"Ej schemalagda timmar (option)",null,"Kort beskrivning av tjänst eller referera till bilaga",null,null,null,null,null,null,"Vid behov specificera tjänster, annan information eller hänvisa till bilaga.",null,null,null,"Enhet","Schemalagda timmar (exkl OB)","Ej schemalagda timmar (exkl OB)",null,"Beräknat pris per månad"]
[null,"Rådgivning inom skydd och säkerhet",null,"Beräknat antal timmar per månad.",null,"Antal timmar/månad",null,null,null,null,null,null,null,null,null,null,null,null,null,null,"Timmar",{"$f":"IF(F109=\"\",\"\",F109)","v":""},{"$f":"IF(H109=\"\",\"\",H109)","v":""},null,{"$f":"IFERROR(SUM(V110:W110),0)","v":0}]
[null,null,null,null,null,null,null,null,null,null,null,null,null,null,null,null,null,null,null,null,"Timpris"]
[null,null,null,null,null,null,null,null,null,null,null,null,null,null,null,null,null,null,null,null,"Summa",{"$f":"IFERROR(IF(V109*V108=0,0,V109*V108),0)","v":0},{"$f":"IFERROR(IF(W109*W108=0,0,W109*W108),0)","v":0}]
[]
[null,"Tilläggstjänst","Ange om tjänsten ingår i avropet (Ja/Nej)","Följande ska anges för respektive tjänst",null,"Kort beskrivning av tjänst eller referera till bilaga",null,null,null,null,null,null,null,null,null,null,"Vid behov specificera tjänster, annan information eller hänvisa till bilaga.",null,null,null,"Pris för utbildning","Pris för utbildning","Pris för utbildning",null,"Beräknat pris per månad"]
[null,"Säkerhetsutbildning",null,"Typ av utbildning, omfattning, antal deltagare etc.",null,null,null,null,null,null,null,null,null,null,null,null,null,null,null,null,null,null,null,null,{"$f":"IFERROR(SUM(U113:W113),0)","v":0}]
[]
[]
[null,"Tilläggstjänst","Ange om tjänsten ingår i avropet (Ja/Nej)","Följande ska anges för respektive tjänst",null,"Kort beskrivning av tjänst eller referera till bilaga",null,null,null,null,null,null,null,null,null,null,"Vid behov specificera tjänster, annan information eller hänvisa till bilaga.",null,null,null,null,null,"Pris per månad\n",null,"Beräknat pris per månad \n(OB-ersättning enligt kollektivavtal kan tillkomma)"]
[null,"Mottagning och förmedling av automatiska brandlarm",null,"Antal larmsystem, antal månaders abbonemang",null,null,null,null,null,null,null,null,null,null,null,null,null,null,null,null,null,null,null,null,{"$f":"IFERROR(W117,0)","v":0}]
[]
[]
[null,"Tilläggstjänst","Ange om tjänsten ingår i avropet (Ja/Nej)","Följande ska anges för respektive tjänst","Antal dagar per månad","Välj typ av larm",null,"Kort beskrivning av tjänst eller referera till bilaga",null,null,null,null,null,null,null,null,"Vid behov specificera tjänster, annan information eller hänvisa till bilaga.",null,null,null,null,null,"Pris per månad\n",null,"Beräknat pris per månad",null,null,null,null,null,null,null,null,null,null,null,null,"Följande ska anges för respektive tjänst"]
[null,"Tillhandahållande av mobilt larm",null,"Typ av mobilt larm, antal abonnemang, antal dagar per månad",null,null,null,null,null,null,null,null,null,null,null,null,null,null,null,null,"Pris inbrottslarm",null,null,null,{"$f":"IFERROR(IF(F121=\"Inbrottslarm\",W121,W122),0)","v":0},null,null,null,null,null,null,null,null,null,null,null,null,"Typ av mobilt larm, antal abonnemang, antal dagar per månad"]
[null,null,null,null,null,null,null,null,null,null,null,null,null,null,null,null,null,null,null,null,"Pris personlarm"]
[]
[null,"Tilläggstjänst","Ange om tjänsten ingår i avropet (Ja/Nej)","Följande ska anges för respektive tjänst",null,"Kort beskrivning av tjänst eller referera till bilaga",null,null,null,null,null,null,null,null,null,null,"Vid behov specificera tjänster, annan information eller hänvisa till bilaga.",null,null,null,null,null,"Pris per månad\n",null,"Beräknat pris per månad \n(OB-ersättning enligt kollektivavtal kan tillkomma)"]
[null,"Fjärrtjänster",null,"Typ av fjärrtjänster som efterfrågas.",null,null,null,null,null,null,null,null,null,null,null,null,null,null,null,null,null,null,null,null,{"$f":"IFERROR(W125,0)","v":0}]
[]
[]
[null,null,null,null,null,null,null,null,null,null,null,null,null,null,null,null,null,null,null,null,null,null,null,"Transport från flik 1.1: ",{"$f":"'1.1 Specifikation utökad'!X117","v":0}]
[]
[null,null,null,null,null,null,null,null,null,null,null,null,null,null,null,null,null,null,null,null,null,null,null,"Totalt pris (utvärderas): ",{"$f":"SUM(Y70:Z126)+Y128","v":0}]
[]
[null,"Steg 3 - Grund för tilldelning av kontrakt",null,null,null,null,null,null,null,null,null,null,null,null,null,null,null,null,null,null,null,null,"Observera att \"Totalt pris\" grundar sig på angivna och uppskattade volymer och inte är att likställa med den faktiska faktureringen av utförda tjänster.\nAvropsblanketten är ett verktyg för att få in jämförbara avropssvar avseende pris och kvalitet.  "]
[null,"I enlighet med ramavtalet sker tilldelning av kontrakt utifrån tilldelningsgrunden: Ekonomiskt mest fördelaktiga utifrån bästa förhållande mellan pris och kvalitet"]
[null,"Alt. 2. Ekonomiskt mest fördelaktiga utifrån bästa förhållande mellan pris och kvalitet",null,null,null,null,null,null,null,null,"(Tag bort detta fält och valmöjligheten, tilldelningsgrunden ska vara fast utifrån respektive ramavtal.)"]
[1]
[1]
[1]
[1,"Utvärderingsmodell",null,null,null,null,null,null,null,null,null,"Instruktion:\nObservera att de två föreslagna alternativen (utöver Lägsta pris) endast är exempel på vanligt förekommande utvärderings-modeller. Det är alltid den avropande organisationen som avgör om man vill använda sig av dem. Det går även att ange egen modell."]
[1,"Ange nedan utvärderingsmodell som kommer att tillämpas för att utse vinnande avropssvar. \n"]
[1]
[1,"Välj utvärdering....."]
[]
[null,"Förfarande  om två avropssvar har erhållit samma poängsumma/utvärderingspris"]
[null,"(plats för text utifrån aktuellt ramavtal)"]
[]
[]
[null,"Steg 4 - Kravspecifikation",null,null,null,null,null,null,null,null,null,null,null,null,null,null,"Kravuppfyllnad"]
[null,"Tillkommande obligatoriska krav (\"ska-krav\")"]
[null,"Välj tjänst (endast de som valts i steg 2 ovan är möjliga)\nOBS! Varje tjänst kan väljas flera gånger.",null,"Välj krav\nOBS! varje krav kan väljas flera gånger\n\n",null,null,null,"Precisera krav i fritext eller hänvisa till bilaga",null,null,null,null,null,null,null,null,"Uppfylls kravet?\nJa/Nej","Beskrivning av hur leverantören uppfyller kravet eller referera till bilaga."]
[null,"Välj tjänst",null,"Välj krav",null,null,null,null,null,null,null,null,null,null,null,null,null,null,null,null,null,null,null,null,null,null,null,{"$f":"IF(LEFT(B150,4)=\"Välj\",TRUE,FALSE)","v":true},{"$f":"IF(AB150=TRUE,IF(Q150<>\"\",FALSE,TRUE),IF(Q150<>\"Ja\",TRUE,FALSE))","v":true},null,null,null,null,null,{"$f":"IF(AB150=AC150,FALSE,TRUE)","v":false}]
[null,"Välj tjänst",null,"Välj krav",null,null,null,null,null,null,null,null,null,null,null,null,null,null,null,null,null,null,null,null,null,null,null,{"$f":"IF(LEFT(B151,4)=\"Välj\",TRUE,FALSE)","v":true},{"$f":"IF(AB151=TRUE,IF(Q151<>\"\",FALSE,TRUE),IF(Q151<>\"Ja\",TRUE,FALSE))","v":true},null,null,null,null,null,{"$f":"IF(AB151=AC151,FALSE,TRUE)","v":false}]
[null,"Välj tjänst",null,"Välj krav",null,null,null,null,null,null,null,null,null,null,null,null,null,null,null,null,null,null,null,null,null,null,null,true,true,null,null,null,null,null,false]
[null,"Välj tjänst",null,"Välj krav",null,null,null,null,null,null,null,null,null,null,null,null,null,null,null,null,null,null,null,null,null,null,null,true,true,null,null,null,null,null,false]
[null,"Välj tjänst",null,"Välj krav",null,null,null,null,null,null,null,null,null,null,null,null,null,null,null,null,null,null,null,null,null,null,null,true,true,null,null,null,null,null,false]
[null,"Välj tjänst",null,"Välj krav",null,null,null,null,null,null,null,null,null,null,null,null,null,null,null,null,null,null,null,null,null,null,null,true,true,null,null,null,null,null,false]
[null,"Välj tjänst",null,"Välj krav",null,null,null,null,null,null,null,null,null,null,null,null,null,null,null,null,null,null,null,null,null,null,null,true,true,null,null,null,null,null,false]
[null,"Välj tjänst",null,"Välj krav",null,null,null,null,null,null,null,null,null,null,null,null,null,null,null,null,null,null,null,null,null,null,null,true,true,null,null,null,null,null,false]
[null,"Välj tjänst",null,"Välj krav",null,null,null,null,null,null,null,null,null,null,null,null,null,null,null,null,null,null,null,null,null,null,null,true,true,null,null,null,null,null,false]
[null,"Välj tjänst",null,"Välj krav",null,null,null,null,null,null,null,null,null,null,null,null,null,null,null,null,null,null,null,null,null,null,null,true,true,null,null,null,null,null,false]
[null,"Välj tjänst",null,"Välj krav",null,null,null,null,null,null,null,null,null,null,null,null,null,null,null,null,null,null,null,null,null,null,null,true,true,null,null,null,null,null,false]
[null,"Välj tjänst",null,"Välj krav",null,null,null,null,null,null,null,null,null,null,null,null,null,null,null,null,null,null,null,null,null,null,null,true,true,null,null,null,null,null,false]
[null,"Välj tjänst",null,"Välj krav",null,null,null,null,null,null,null,null,null,null,null,null,null,null,null,null,null,null,null,null,null,null,null,true,true,null,null,null,null,null,false]
[null,"Välj tjänst",null,"Välj krav",null,null,null,null,null,null,null,null,null,null,null,null,null,null,null,null,null,null,null,null,null,null,null,true,true,null,null,null,null,null,false]
[null,"Välj tjänst",null,"Välj krav",null,null,null,null,null,null,null,null,null,null,null,null,null,null,null,null,null,null,null,null,null,null,null,true,true,null,null,null,null,null,false]
[null,"Välj tjänst",null,"Välj krav",null,null,null,null,null,null,null,null,null,null,null,null,null,null,null,null,null,null,null,null,null,null,null,true,true,null,null,null,null,null,false]
[null,"Välj tjänst",null,"Välj krav",null,null,null,null,null,null,null,null,null,null,null,null,null,null,null,null,null,null,null,null,null,null,null,true,true,null,null,null,null,null,false]
[null,"Välj tjänst",null,"Välj krav",null,null,null,null,null,null,null,null,null,null,null,null,null,null,null,null,null,null,null,null,null,null,null,true,true,null,null,null,null,null,false]
[null,"Välj tjänst",null,"Välj krav",null,null,null,null,null,null,null,null,null,null,null,null,null,null,null,null,null,null,null,null,null,null,null,true,true,null,null,null,null,null,false]
[null,"Välj tjänst",null,"Välj krav",null,null,null,null,null,null,null,null,null,null,null,null,null,null,null,null,null,null,null,null,null,null,null,true,true,null,null,null,null,null,false]
[]
[]
[null,"Tilldelningskriterier (\"bör-krav\")"]
[null,"Välj tjänst (endast de som valts i steg 2 ovan är möjliga)\nOBS! Varje tjänst kan väljas flera gånger.",null,"Välj krav ur kravkatalog \nOBS! varje krav kan väljas flera gånger",null,null,null,"Precisera krav i fritext eller hänvisa till bilaga\nOBS! Endast krav som kan besvaras med Ja eller Nej av leverantören\n",null,null,null,{"$f":"IF(TillDelVal=1,\"\",\"Ange poäng-värde\n\")","v":"Ange poäng-värde\n"},{"$f":"IF(TillDelVal=1,\"\",\"Ange prisavdrag från totalpriset (kr)\n\")","v":"Ange prisavdrag från totalpriset (kr)\n"},null,null,null,"Uppfyller kravet?","Beskrivning av hur leverantören uppfyller kravet eller referera till bilaga"]
[null,"Välj tjänst",null,null,null,null,null,null,null,null,null,null,null,null,null,null,null,null,null,null,null,null,null,null,null,null,null,{"$f":"IF(LEFT(B174,4)=\"Välj\",TRUE,FALSE)","v":true},{"$f":"IF(AB174=TRUE,IF(Q174<>\"\",FALSE,TRUE),IF(Q174<>\"Ja\",TRUE,FALSE))","v":true},null,null,null,null,null,{"$f":"IF(AB174=AC174,FALSE,TRUE)","v":false}]
[null,"Välj tjänst",null,null,null,null,null,null,null,null,null,null,null,null,null,null,null,null,null,null,null,null,null,null,null,null,null,{"$f":"IF(LEFT(B175,4)=\"Välj\",TRUE,FALSE)","v":true},{"$f":"IF(AB175=TRUE,IF(Q175<>\"\",FALSE,TRUE),IF(Q175<>\"Ja\",TRUE,FALSE))","v":true},null,null,null,null,null,false]
[null,"Välj tjänst",null,null,null,null,null,null,null,null,null,null,null,null,null,null,null,null,null,null,null,null,null,null,null,null,null,true,true,null,null,null,null,null,false]
[null,"Välj tjänst",null,null,null,null,null,null,null,null,null,null,null,null,null,null,null,null,null,null,null,null,null,null,null,null,null,true,true,null,null,null,null,null,false]
[null,"Välj tjänst",null,null,null,null,null,null,null,null,null,null,null,null,null,null,null,null,null,null,null,null,null,null,null,null,null,true,true,null,null,null,null,null,false]
[null,"Välj tjänst",null,null,null,null,null,null,null,null,null,null,null,null,null,null,null,null,null,null,null,null,null,null,null,null,null,true,true,null,null,null,null,null,false]
[null,"Välj tjänst",null,null,null,null,null,null,null,null,null,null,null,null,null,null,null,null,null,null,null,null,null,null,null,null,null,true,true,null,null,null,null,null,false]
[null,"Välj tjänst",null,null,null,null,null,null,null,null,null,null,null,null,null,null,null,null,null,null,null,null,null,null,null,null,null,true,true,null,null,null,null,null,false]
[null,"Välj tjänst",null,null,null,null,null,null,null,null,null,null,null,null,null,null,null,null,null,null,null,null,null,null,null,null,null,true,true,null,null,null,null,null,false]
[null,"Välj tjänst",null,null,null,null,null,null,null,null,null,null,null,null,null,null,null,null,null,null,null,null,null,null,null,null,null,true,true,null,null,null,null,null,false]
[null,"Välj tjänst (endast de som valts i steg 2 ovan är möjliga)\nOBS! Varje tjänst kan väljas flera gånger.",null,"Välj krav ur kravkatalog \nOBS! varje krav kan väljas flera gånger",null,null,null,"Precisera krav i fritext eller hänvisa till bilaga\nOBS! Endast krav som som utvärderas efter att avropssvar inkommit\n\n",null,null,null,{"$f":"IF(TillDelVal=1,\"\",\"Ange max poäng-värde\n\")","v":"Ange max poäng-värde\n"},{"$f":"IF(TillDelVal=1,\"\",\"Ange max prisavdrag från totalpriset (kr)\n\")","v":"Ange max prisavdrag från totalpriset (kr)\n"},null,null,null,"Ange faktiskt utfall,\npoängväde/prisavdrag efter utvärdering","Avropande organisation beskriver hur leverantören uppfyller krav för att erhålla angivet poängvärde eller prisavdrag.\n",null,null,"Leverantörens svar och beskrivning av hur kravet uppfylls (eller referera till bilaga)"]
[null,"Välj tjänst",null,null,null,null,null,null,null,null,null,null,null,null,null,null,null,null,null,null,null,null,null,null,null,null,null,true,true,null,null,null,null,null,false]
[null,"Välj tjänst",null,null,null,null,null,null,null,null,null,null,null,null,null,null,null,null,null,null,null,null,null,null,null,null,null,true,true,null,null,null,null,null,false]
[null,"Välj tjänst",null,null,null,null,null,null,null,null,null,null,null,null,null,null,null,null,null,null,null,null,null,null,null,null,null,true,true,null,null,null,null,null,false]
[null,"Välj tjänst",null,null,null,null,null,null,null,null,null,null,null,null,null,null,null,null,null,null,null,null,null,null,null,null,null,true,true,null,null,null,null,null,false]
[null,"Välj tjänst",null,null,null,null,null,null,null,null,null,null,null,null,null,null,null,null,null,null,null,null,null,null,null,null,null,true,true,null,null,null,null,null,false]
[null,"Välj tjänst",null,null,null,null,null,null,null,null,null,null,null,null,null,null,null,null,null,null,null,null,null,null,null,null,null,true,true,null,null,null,null,null,false]
[null,"Välj tjänst",null,null,null,null,null,null,null,null,null,null,null,null,null,null,null,null,null,null,null,null,null,null,null,null,null,true,true,null,null,null,null,null,false]
[null,"Välj tjänst",null,null,null,null,null,null,null,null,null,null,null,null,null,null,null,null,null,null,null,null,null,null,null,null,null,true,true,null,null,null,null,null,false]
[null,"Välj tjänst",null,null,null,null,null,null,null,null,null,null,null,null,null,null,null,null,null,null,null,null,null,null,null,null,null,true,true,null,null,null,null,null,false]
[null,"Välj tjänst",null,null,null,null,null,null,null,null,null,null,null,null,null,null,null,null,null,null,null,null,null,null,null,null,null,true,true,null,null,null,null,null,false]
[1]
[1,null,null,null,null,null,null,null,null,null,null,{"$f":"IF(UtvarderingsVal=\"Alt3\",\"\",\"Max poäng för uppfyllda bör-krav\")","v":"Max poäng för uppfyllda bör-krav"},{"$f":"IF(UtvarderingsVal=\"Alt2\",\"\",\"Max prisavdrag för uppfyllda bör-krav\")","v":"Max prisavdrag för uppfyllda bör-krav"}]
[1,null,null,null,null,null,null,null,null,null,null,{"$f":"IF(UtvarderingsVal=\"Alt3\",\"\",SUM(L174:L194))","v":0},{"$f":"IF(UtvarderingsVal=\"Alt2\",\"\",SUM(M174:N194))","v":0},null,null,null,{"$f":"IF(UtvarderingsVal=\"Alt3\",\"\",\"Total erhållen poängsumma:\")","v":"Total erhållen poängsumma:"},{"$f":"IFERROR(IF(UtvarderingsVal=\"Alt3\",\"\",SUMIF(Q174:Q183,\"Ja\",L174:L183))+SUM(Q185:Q194),\"\")","v":0},null,null,{"$f":"IF(UtvarderingsVal=\"Alt2\",\"\",\"Totalt erhållet prisavdrag:\")","v":"Totalt erhållet prisavdrag:"},null,{"$f":"IFERROR(IF(UtvarderingsVal=\"Alt2\",\"\",SUMIF(Q174:Q183,\"Ja\",M174:N183))+SUM(Q185:Q194),\"\")","v":0}]
[]
[]
[]
["Ut1","Alt. 2. Summan av viktade poäng för pris och uppfyllda bör-krav, högsta slutsumma vinner.",null,null,null,null,null,null,null,null,null,null,null,null,null,null,"Sammanställning för detta avropssvar",null,"Fyll i det gula fältet efter att samtliga avropssvar inkommit!","När det gula fältet är ifyllt sker en automatisk poängberäkning. Lägst inkomna pris divideras med det aktuella avropssvarets pris, multipliceras med 100 och därefter med angiven viktning. Poängsumman för uppfyllda bör-krav divideras med max poäng för uppfyllda bör-krav, multipliceras med 100 och därefter med angiven viktning. En slutlig poängsumma för detta avropssvar kommer att framgå av fältet längst ned. Denna slutliga poängsumma ska jämföras med övriga inkomna avropssvar och ligger till grund för tilldelningsbeslutet."]
["Ut1","Priset jämförs mellan avropssvaren. Poäng för uppfyllda bör-krav jämförs med möjlig maxpoäng. "]
["Ut1","Tilldelningskriterier"]
["Ut1","Ange kriterievikt för pris respektive bör-krav i tabellen nedan",null,null,null,null,null,null,null,"Viktning %",null,null,null,null,null,null,null,"Viktning","Lägsta inkomna totalpris","Erhållen poäng för totalpris",null,"Viktade poäng per kriterium",null,"Slutlig poängsumma för detta avropssvar\n(utvärderas)"]
["Ut1","Pris",null,null,null,null,null,null,"Utvärdering av det totala sammanräknade priset: ",1,null,null,null,null,null,null,"Totalpris"]
["Ut1","Utvärderingskrav \n(bör-krav)",null,null,null,null,null,null,"Utvärdering av ställda bör-krav på avropade tjänster: ",0,null,null,null,null,null,null,{"$f":"Y130","v":0},{"$f":"J205","v":1},null,{"$f":"IFERROR(S206/Q206*100,0)","v":0},null,{"$f":"IFERROR(T206*R206,\"\")","v":0},null,{"$f":"IFERROR(SUM(V206+V208),\"\")","v":""}]
["Ut1","Summa kriterievikt:",null,null,null,null,null,null,"(ska alltid summera till 100 %)",{"$f":"J206+J205","v":1},null,null,null,null,null,null,"Poängsumma för uppfyllda bör-krav"]
["Ut1",null,null,null,null,null,null,null,null,null,null,null,null,null,null,null,{"$f":"R197","v":0},{"$f":"J206","v":0},null,null,null,{"$f":"IFERROR(((Q208/L197)*100)*R208,\"\")","v":""}]
["Ut1"]
["Ut1"]
[]
["Ut2","Alt. 3. Prisavdrag för uppfyllda bör-krav, lägsta utvärderingskostnad vinner. ",null,null,null,null,null,null,null,null,null,null,null,null,null,null,"Prisavdrag för uppfyllda bör-krav. ",null,"Summa utvärderingskostnad för detta avropssvar"]
["Ut2","Det erhållna prisavdraget för uppfyllda utvärderingskrav (bör-krav) dras ifrån det totala priset för avropade tjänster. Resultatet blir en utvärderingskostnad som ligger till grund för tilldelningsbeslutet.",null,null,null,null,null,null,null,null,null,null,null,null,null,null,{"$f":"W197","v":0},null,{"$f":"Y130-Q213","v":0}]
["Ut2",null,null,null,null,null,null,null,null,null,null,null,null,null,null,null,null,null,"OBS! Ej detsamma som kontraktssumma"]
["Ut2"]
["Ut2"]
[]
["Ut3","Alt. 4. Annan utvärderingsmodell (än de ovan föreslagna)"]
["Ut3"]
["Ut3","Avropande organisations beskrivning av den utvärderingsmodell som kommer att tillämpas (eller hänvisning till bilaga)"]
["Ut3"]
["Ut3"]
["Ut3"]
["Ut3"]
["Ut3"]
["Ut3"]
["Ut3"]
[]
[]
[null,"Steg 5 - Övriga kontraktsvillkor"]
[null,"Ramavtalets allmänna villkor utgör alltid en del av kontraktet."]
[null,"Leveranstid"]
[null,"Ange ev leveranstid/er för varor/tjänster"]
[]
[]
[]
[]
[null,"Leveransadress (om annan än ovan)"]
[null,"Ange ev adress för uppdraget/uppdragen"]
[]
[]
[]
[]
[null,"Faktureringsuppgifter "]
[null,"Ange fakturaadress, fakturareferens, adress för e-faktura"]
[]
[]
[]
[]
[]
[]
[null,"Leveransvillkor (framgår av ramavtalets allmänna villkor)"]
[null,"Ev. precisering av leveransvillkor"]
[]
[]
[]
[]
[null,"Kompletterande avtalsdokument"]
[null,"T.ex. säkerhetsskyddsavtal, personuppgiftsbiträdesavtal, sekretessavtal, servicenivåavtal. (alternativt enl separat bilaga) \nObservera att det måste framgå av ramavtalet att krav kan ställas på sådana avtal."]
[]
[]
[]
[]
[null,"Övrig information"]
[null,"Ange övriga specifika förutsättningar (tex ev budgetrestriktioner), förhållanden eller önskemål som kan vara viktiga för leverantören och som inte framgår på annan plats i dokumentet."]
[]
[]
[]
[]
[]
[]
[]
[]
[]
[]
[]
[null,"Bilagor från avropande organisation (kontraktshandlingar framgår av flik 3)",null,null,null,null,null,null,null,null,null,null,null,null,null,null,"Bilagor från leverantören"]
[null,"Specificera ev. bilagor som medföljer denna avropsförfrågan",null,null,null,null,null,null,null,null,null,null,null,null,null,null,"Specificera ev. bilagor som medföljer detta avropssvar"]
[]
[]
[]
[]
[]
[]
[null,null,null,null,null,null,null,null,null,null,null,null,null,null,null,null,"Leverantören har lämnat begärda prisuppgifter som gäller för offererade varor och tjänster enligt ställda krav samt accepterar i övrigt kraven i avropsförfrågan och är införstådd med att samtliga lämnade uppgifter i avropssvaret är bindande\n"]
[]
[null,"OBS! Spara inte blanketten i PDF-format. Då kan inte leverantörerna fylla i den. Lås blanketten med \"låsknappen\" nedan innan ni skickar blanketten till leverantörerna.",null,null,null,null,null,null,null,null,null,null,null,null,null,null,{"$f":"\"Leverantören intygar att avropssvaret är giltigt minst den tid som avropande organisation angett ovan. \"&CHAR(10)&\"(\"&TEXT(D34,\"ÅÅÅÅ-MM-DD\")&\")\"","v":"Leverantören intygar att avropssvaret är giltigt minst den tid som avropande organisation angett ovan. \n(1900-01-00)"}]
[null,null,null,null,null,null,null,null,null,null,null,null,null,null,null,null,"Ort, datum"]
[null,null,null,null,null,null,null,null,null,null,null,null,null,null,null,null,null,null,null,null,null,null,null,null,null,null,null,null,null,null,null,null,null,null,{"$f":"IF(Q289=0,TRUE,FALSE)","v":true}]
[]
[null,null,null,null,null,null,null,null,null,null,null,null,null,null,null,null,"Namn, befattning (behörig företrädare för leverantören)"]
[]
[null,null,null,null,null,null,null,null,null,null,null,null,null,null,null,null,null,null,null,null,null,null,null,null,null,null,null,null,null,null,null,null,null,null,{"$f":"IF(Q292=0,TRUE,FALSE)","v":true}]
[]
[null,null,null,null,null,null,null,null,null,null,null,null,null,null,null,null,null,null,null,null,{"$f":"IF(LarmStatus,\"Minst ett av de obligatoriska kraven är inte ifyllda eller besvarde med Nej\",\"\")","v":"Minst ett av de obligatoriska kraven är inte ifyllda eller besvarde med Nej"}]

{"sheet":"1.1 Specifikation utökad","index":1,"n_rows":120,"n_cols":34,"rows_kept":120,"cut":false,"hidden":false,"merged":[[119,21,120,24],[111,3,111,4],[111,5,111,6],[111,7,111,8],[111,9,111,13],[111,15,111,18],[111,23,111,24],[112,1,114,1],[112,2,114,2],[112,3,114,4],[112,5,112,8],[112,9,114,13],[112,15,114,18],[112,23,114,24],[113,5,114,6],[113,7,114,8],[116,23,116,24],[118,1,118,5],[106,3,106,4],[106,5,106,6],[106,7,106,8],[106,9,106,13],[106,15,106,18],[106,23,106,24],[107,1,109,1],[107,2,109,2],[107,3,109,4],[107,5,107,8],[107,9,109,13],[107,15,109,18],[107,23,109,24],[108,5,109,6],[108,7,109,8],[95,3,95,4],[95,5,95,6],[95,7,95,8],[95,9,95,10],[95,11,95,13],[95,15,95,20],[95,23,95,24],[96,1,98,1],[96,2,98,2],[96,3,98,4],[96,5,98,6],[96,7,98,8],[96,9,98,10],[96,11,98,13],[96,15,98,20],[96,23,98,24],[97,21,98,22],[91,1,93,1],[91,2,93,2],[91,3,93,4],[91,5,93,6],[91,7,93,8],[91,9,93,10],[91,11,93,13],[91,15,93,20],[91,23,93,24],[92,21,93,22],[47,25,47,42],[48,5,48,6],[48,7,48,8],[49,5,49,8],[50,5,50,6],[50,7,50,8],[50,19,50,20],[58,3,58,4],[58,5,58,6],[58,7,58,8],[58,9,58,13],[58,15,58,18],[58,23,58,24],[52,3,52,4],[52,5,52,6],[52,7,52,8],[52,9,52,13],[52,15,52,18],[52,23,52,24],[53,23,56,24],[54,5,56,6],[54,7,56,8],[46,15,46,18],[46,22,50,22],[46,23,46,24],[47,1,50,1],[47,2,50,2],[47,3,50,4],[47,5,47,8],[47,9,50,13],[47,15,50,18],[47,23,50,24],[46,3,46,4],[46,5,46,6],[46,7,46,8],[46,9,46,13],[41,3,44,4],[41,5,41,8],[41,9,44,13],[41,15,44,18],[41,23,44,24],[41,25,41,42],[42,5,42,6],[42,7,42,8],[43,5,43,8],[44,5,44,6],[44,7,44,8],[44,19,44,20],[4,1,4,3],[5,2,5,3],[2,1,2,4],[2,15,2,17],[2,19,2,22],[34,22,38,22],[12,2,12,3],[13,2,13,3],[14,2,14,3],[15,2,15,3],[16,2,16,3],[17,2,17,3],[6,2,6,3],[7,2,7,3],[8,2,8,3],[9,2,9,3],[10,2,10,3],[11,2,11,3],[24,2,24,3],[25,2,25,3],[26,2,26,3],[28,1,29,1],[28,2,29,11],[32,1,32,5],[18,2,18,3],[19,2,19,3],[20,2,20,3],[21,2,21,3],[22,2,22,3],[23,2,23,3],[34,23,34,24],[35,1,38,1],[35,2,38,2],[35,3,38,4],[35,5,35,8],[35,9,38,13],[35,15,38,18],[35,23,38,24],[33,1,33,6],[33,15,33,16],[34,3,34,4],[34,5,34,6],[34,7,34,8],[34,9,34,13],[34,15,34,18],[53,1,56,1],[53,2,56,2],[53,3,56,4],[53,5,53,8],[53,9,56,13],[53,15,56,18],[59,1,62,1],[59,2,62,2],[35,25,35,42],[36,5,36,6],[36,7,36,8],[37,5,37,8],[38,5,38,6],[38,7,38,8],[38,19,38,20],[40,3,40,4],[40,5,40,6],[40,7,40,8],[40,9,40,13],[40,15,40,18],[40,22,44,22],[40,23,40,24],[41,1,44,1],[41,2,44,2],[70,3,70,4],[70,5,70,6],[70,7,70,8],[70,9,70,11],[70,12,70,13],[70,15,70,18],[70,23,70,24],[59,3,62,4],[59,5,59,8],[59,9,62,13],[59,15,62,18],[59,23,62,24],[60,5,62,6],[60,7,62,8],[64,3,64,4],[64,5,64,6],[64,7,64,8],[64,9,64,13],[64,15,64,18],[64,23,64,24],[65,3,68,4],[65,5,65,8],[65,9,68,13],[65,15,68,18],[75,7,75,8],[75,9,75,11],[75,12,75,13],[75,15,75,18],[75,23,75,24],[76,3,78,4],[76,5,76,8],[76,9,78,11],[76,12,78,13],[76,15,78,18],[76,23,78,24],[77,5,78,6],[85,23,85,24],[86,1,88,1],[86,2,88,2],[86,3,88,4],[86,5,88,6],[86,7,88,8],[86,9,88,10],[86,11,88,13],[86,15,88,20],[86,23,88,24],[87,21,88,22],[85,3,85,4],[85,5,85,6],[85,7,85,8],[85,9,85,10],[85,11,85,13],[85,15,85,20],[102,1,104,1],[102,2,104,2],[102,3,104,4],[102,5,102,8],[102,9,104,13],[102,15,104,18],[100,1,100,3],[101,3,101,4],[101,5,101,6],[101,7,101,8],[101,9,101,13],[101,15,101,18],[71,1,73,1],[71,2,73,2],[71,3,73,4],[71,5,71,8],[71,9,73,11],[71,12,73,13],[80,15,80,18],[80,23,80,24],[81,3,83,4],[81,5,81,8],[81,9,83,11],[81,12,83,13],[81,1,83,1],[81,2,83,2],[81,15,83,18],[81,23,83,24],[82,5,83,6],[82,7,83,8],[71,15,73,18],[71,23,73,24],[72,5,73,6],[72,7,73,8],[75,3,75,4],[75,5,75,6],[101,23,101,24],[102,23,104,24],[103,5,104,6],[103,7,104,8],[65,1,68,1],[65,2,68,2],[65,23,68,24],[66,5,68,6],[66,7,68,8],[90,3,90,4],[90,5,90,6],[90,7,90,8],[90,9,90,10],[90,11,90,13],[90,15,90,20],[90,23,90,24],[76,1,78,1],[76,2,78,2],[77,7,78,8],[80,3,80,4],[80,5,80,6],[80,7,80,8],[80,9,80,11],[80,12,80,13]]}
[]
[]
[null,"Avropsförfrågan",null,null,null,null,null,null,null,null,null,null,null,null,null,"Avropssvar",null,null,null,null,null,null,null,null,null,null,null,null,null,null,null,null,null,{"$f":"OR(AH4:AH760)","v":{"$error":"#VALUE!"}}]
[]
[null,"Ange region/regioner. Markera med ett \"X\" i de gula fälten bredvid respektive län."]
[null,{"$f":"Admin!J56","v":"Samtliga län"}]
[null,{"$f":"Admin!J57","v":"Blekinge län"}]
[null,{"$f":"Admin!J58","v":"Dalarnas län"}]
[null,{"$f":"Admin!J59","v":"Gotlands län"}]
[null,{"$f":"Admin!J60","v":"Gävleborgs län"}]
[null,{"$f":"Admin!J61","v":"Hallands län"}]
[null,{"$f":"Admin!J62","v":"Jämtlands län"}]
[null,{"$f":"Admin!J63","v":"Jönköpings län"}]
[null,{"$f":"Admin!J64","v":"Kalmar län"}]
[null,{"$f":"Admin!J65","v":"Kronobergs län"}]
[null,{"$f":"Admin!J66","v":"Norrbottens län"}]
[null,{"$f":"Admin!J67","v":"Skåne län"}]
[null,{"$f":"Admin!J68","v":"Stockholms län"}]
[null,{"$f":"Admin!J69","v":"Södermanlands län"}]
[null,{"$f":"Admin!J70","v":"Uppsala län"}]
[null,{"$f":"Admin!J71","v":"Värmlands län"}]
[null,{"$f":"Admin!J72","v":"Västerbottens län"}]
[null,{"$f":"Admin!J73","v":"Västernorrlands län"}]
[null,{"$f":"Admin!J74","v":"Västmanlands län"}]
[null,{"$f":"Admin!J75","v":"Västra Götalands län"}]
[null,{"$f":"Admin!J76","v":"Örebro län"}]
[null,{"$f":"Admin!J77","v":"Östergötlands län"}]
[]
[null,"Sammanställning regionsval",{"$f":"SammanstRegioner2","v":""}]
[]
[]
[]
[null,"Steg 2 - Specifikation av varor/tjänster"]
[null,"Ordinarie tjänster (om avropet omfattar flera objekt med olika förutsättningar kan flik 2 användas)",null,null,null,null,null,null,"",null,null,null,null,null,null,"Leverantörens svar"]
[null,"Tjänst","Ange om tjänsten ingår i avropet (Ja/Nej)","Följande ska anges för respektive tjänst",null,"Schemalagda timmar",null,"Ej schemalagda timmar (option)",null,"Kort beskrivning av tjänst eller referera till bilaga\nAnge tider för rondering",null,null,null,null,null,"Vid behov specificera tjänster, annan information eller hänvisa till bilaga.",null,null,null,"Enhet","Schemalagda timmar (exkl OB)","Ej schemalagda timmar (exkl OB)",null,"Beräknat pris per månad "]
[null,"Ronderande bevakning",null,"Beräknat antal timmar och ronder per månad",null,"Antal timmar / månad",null,null,null,null,null,null,null,null,null,null,null,null,null,"Timmar",{"$f":"IF(F37=\"\",\"\",F37)","v":""},{"$f":"IF(H37=\"\",\"\",H37)","v":""},null,{"$f":"IFERROR((U38+V38)+(IFERROR(V39*F39,0)),0)","v":0}]
[null,null,null,null,null,null,null,null,null,null,null,null,null,null,null,null,null,null,null,"Timpris"]
[null,null,null,null,null,"Antal ronder / månad\n(1 / dag = 30,44 enligt schablon, ange annan frekvens om aktuellt)",null,null,null,null,null,null,null,null,null,null,null,null,null,"Summa",{"$f":"IFERROR(IF(U37*U36=0,0,U37*U36),0)","v":0},{"$f":"IFERROR(IF(V37*V36=0,0,V37*V36),0)","v":0}]
[null,null,null,null,null,30.44,null,null,null,null,null,null,null,null,null,null,null,null,null,"Pris framkörning per rond:"]
[]
[null,"Tjänst","Ange om tjänsten ingår i avropet (Ja/Nej)","Följande ska anges för respektive tjänst",null,"Schemalagda timmar",null,"Ej schemalagda timmar (option)",null,"Kort beskrivning av tjänst eller referera till bilaga\nAnge tider för rondering",null,null,null,null,null,"Vid behov specificera tjänster, annan information eller hänvisa till bilaga.",null,null,null,"Enhet","Schemalagda timmar (exkl OB)","Ej schemalagda timmar (exkl OB)",null,"Beräknat pris per månad "]
[null,"Ronderande bevakning",null,"Beräknat antal timmar och ronder per månad",null,"Antal timmar / månad",null,null,null,null,null,null,null,null,null,null,null,null,null,"Timmar",{"$f":"IF(F43=\"\",\"\",F43)","v":""},{"$f":"IF(H43=\"\",\"\",H43)","v":""},null,{"$f":"IFERROR((U44+V44)+(IFERROR(V45*F45,0)),0)","v":0}]
[null,null,null,null,null,null,null,null,null,null,null,null,null,null,null,null,null,null,null,"Timpris"]
[null,null,null,null,null,"Antal ronder / månad\n(1 / dag = 30,44 enligt schablon, ange annan frekvens om aktuellt)",null,null,null,null,null,null,null,null,null,null,null,null,null,"Summa",{"$f":"IFERROR(IF(U43*U42=0,0,U43*U42),0)","v":0},{"$f":"IFERROR(IF(V43*V42=0,0,V43*V42),0)","v":0}]
[null,null,null,null,null,30.44,null,null,null,null,null,null,null,null,null,null,null,null,null,"Pris framkörning per rond:"]
[]
[null,"Tjänst","Ange om tjänsten ingår i avropet (Ja/Nej)","Följande ska anges för respektive tjänst",null,"Schemalagda timmar",null,"Ej schemalagda timmar (option)",null,"Kort beskrivning av tjänst eller referera till bilaga\nAnge tider för rondering",null,null,null,null,null,"Vid behov specificera tjänster, annan information eller hänvisa till bilaga.",null,null,null,"Enhet","Schemalagda timmar (exkl OB)","Ej schemalagda timmar (exkl OB)",null,"Beräknat pris per månad "]
[null,"Ronderande bevakning",null,"Beräknat antal timmar och ronder per månad",null,"Antal timmar / månad",null,null,null,null,null,null,null,null,null,null,null,null,null,"Timmar",{"$f":"IF(F49=\"\",\"\",F49)","v":""},{"$f":"IF(H49=\"\",\"\",H49)","v":""},null,{"$f":"IFERROR((U50+V50)+(IFERROR(V51*F51,0)),0)","v":0}]
[null,null,null,null,null,null,null,null,null,null,null,null,null,null,null,null,null,null,null,"Timpris"]
[null,null,null,null,null,"Antal ronder / månad\n(1 / dag = 30,44 enligt schablon, ange annan frekvens om aktuellt)",null,null,null,null,null,null,null,null,null,null,null,null,null,"Summa",{"$f":"IFERROR(IF(U49*U48=0,0,U49*U48),0)","v":0},{"$f":"IFERROR(IF(V49*V48=0,0,V49*V48),0)","v":0}]
[null,null,null,null,null,30.44,null,null,null,null,null,null,null,null,null,null,null,null,null,"Pris framkörning per rond:"]
[]
[null,"Tjänst","Ange om tjänsten ingår i avropet (Ja/Nej)","Följande ska anges för respektive tjänst",null,"Schemalagda timmar",null,"Ej schemalagda timmar (option)",null,"Kort beskrivning av tjänst eller referera till bilaga",null,null,null,null,null,"Vid behov specificera tjänster, annan information eller hänvisa till bilaga.",null,null,null,"Enhet","Schemalagda timmar (exkl OB)","Ej schemalagda timmar (exkl OB)",null,"Beräknat pris per månad "]
[null,"Stationär bevakning",null,"Beräknat antal timmar per månad",null,"Antal timmar / månad",null,null,null,null,null,null,null,null,null,null,null,null,null,"Timmar",{"$f":"IF(F55=\"\",\"\",F55)","v":""},{"$f":"IF(H55=\"\",\"\",H55)","v":""},null,{"$f":"IFERROR((U56+V56),0)","v":0}]
[null,null,null,null,null,null,null,null,null,null,null,null,null,null,null,null,null,null,null,"Timpris"]
[null,null,null,null,null,null,null,null,null,null,null,null,null,null,null,null,null,null,null,"Summa",{"$f":"IFERROR(IF(U55*U54=0,0,U55*U54),0)","v":0},{"$f":"IFERROR(IF(V55*V54=0,0,V55*V54),0)","v":0}]
[]
[]
[null,"Tjänst","Ange om tjänsten ingår i avropet (Ja/Nej)","Följande ska anges för respektive tjänst",null,"Schemalagda timmar",null,"Ej schemalagda timmar (option)",null,"Kort beskrivning av tjänst eller referera till bilaga",null,null,null,null,null,"Vid behov specificera tjänster, annan information eller hänvisa till bilaga.",null,null,null,"Enhet","Schemalagda timmar (exkl OB)","Ej schemalagda timmar (exkl OB)",null,"Beräknat pris per månad "]
[null,"Stationär bevakning",null,"Beräknat antal timmar per månad",null,"Antal timmar / månad",null,null,null,null,null,null,null,null,null,null,null,null,null,"Timmar",{"$f":"IF(F61=\"\",\"\",F61)","v":""},{"$f":"IF(H61=\"\",\"\",H61)","v":""},null,{"$f":"IFERROR((U62+V62),0)","v":0}]
[null,null,null,null,null,null,null,null,null,null,null,null,null,null,null,null,null,null,null,"Timpris"]
[null,null,null,null,null,null,null,null,null,null,null,null,null,null,null,null,null,null,null,"Summa",{"$f":"IFERROR(IF(U61*U60=0,0,U61*U60),0)","v":0},{"$f":"IFERROR(IF(V61*V60=0,0,V61*V60),0)","v":0}]
[]
[]
[null,"Tjänst","Ange om tjänsten ingår i avropet (Ja/Nej)","Följande ska anges för respektive tjänst",null,"Schemalagda timmar",null,"Ej schemalagda timmar (option)",null,"Kort beskrivning av tjänst eller referera till bilaga",null,null,null,null,null,"Vid behov specificera tjänster, annan information eller hänvisa till bilaga.",null,null,null,"Enhet","Schemalagda timmar (exkl OB)","Ej schemalagda timmar (exkl OB)",null,"Beräknat pris per månad "]
[null,"Stationär bevakning",null,"Beräknat antal timmar per månad",null,"Antal timmar / månad",null,null,null,null,null,null,null,null,null,null,null,null,null,"Timmar",{"$f":"IF(F67=\"\",\"\",F67)","v":""},{"$f":"IF(H67=\"\",\"\",H67)","v":""},null,{"$f":"IFERROR((U68+V68),0)","v":0}]
[null,null,null,null,null,null,null,null,null,null,null,null,null,null,null,null,null,null,null,"Timpris"]
[null,null,null,null,null,null,null,null,null,null,null,null,null,null,null,null,null,null,null,"Summa",{"$f":"IFERROR(IF(U67*U66=0,0,U67*U66),0)","v":0},{"$f":"IFERROR(IF(V67*V66=0,0,V67*V66),0)","v":0}]
[]
[]
[null,"Tjänst","Ange om tjänsten ingår i avropet (Ja/Nej)","Följande ska anges för respektive tjänst",null,"Schemalagda timmar",null,"Ej schemalagda timmar (option)",null,"Kort beskrivning av tjänst eller referera till bilaga",null,null,"Stationär eller ronderande ordningsvakt (välj i lista)",null,null,"Vid behov specificera tjänster, annan information eller hänvisa till bilaga.",null,null,null,"Enhet","Schemalagda timmar (exkl OB)","Ej schemalagda timmar (exkl OB)",null,"Beräknat pris per månad "]
[null,"Ordningsvakter",null,"Beräknat antal timmar per månad.\nStationär eller ronderande ordningsvakt.",null,"Antal timmar/månad",null,null,null,null,null,null,null,null,null,null,null,null,null,"Timmar",{"$f":"IF(F73=\"\",\"\",F73)","v":""},{"$f":"IF(H73=\"\",\"\",H73)","v":""},null,{"$f":"IFERROR((U74+V74),0)","v":0}]
[null,null,null,null,null,null,null,null,null,null,null,null,null,null,null,null,null,null,null,"Timpris"]
[null,null,null,null,null,null,null,null,null,null,null,null,null,null,null,null,null,null,null,"Summa",{"$f":"IFERROR(IF(U73*U72=0,0,U73*U72),0)","v":0},{"$f":"IFERROR(IF(V73*V72=0,0,V73*V72),0)","v":0}]
[]
[null,"Tjänst","Ange om tjänsten ingår i avropet (Ja/Nej)","Följande ska anges för respektive tjänst",null,"Schemalagda timmar",null,"Ej schemalagda timmar (option)",null,"Kort beskrivning av tjänst eller referera till bilaga",null,null,"Stationär eller ronderande ordningsvakt (välj i lista)",null,null,"Vid behov specificera tjänster, annan information eller hänvisa till bilaga.",null,null,null,"Enhet","Schemalagda timmar (exkl OB)","Ej schemalagda timmar (exkl OB)",null,"Beräknat pris per månad"]
[null,"Ordningsvakter",null,"Beräknat antal timmar per månad.\nStationär eller ronderande ordningsvakt.",null,"Antal timmar/månad",null,null,null,null,null,null,null,null,null,null,null,null,null,"Timmar",{"$f":"IF(F78=\"\",\"\",F78)","v":""},{"$f":"IF(H78=\"\",\"\",H78)","v":""},null,{"$f":"IFERROR((U79+V79),0)","v":0}]
[null,null,null,null,null,null,null,null,null,null,null,null,null,null,null,null,null,null,null,"Timpris"]
[null,null,null,null,null,null,null,null,null,null,null,null,null,null,null,null,null,null,null,"Summa",{"$f":"IFERROR(IF(U78*U77=0,0,U78*U77),0)","v":0},{"$f":"IFERROR(IF(V78*V77=0,0,V78*V77),0)","v":0}]
[]
[null,"Tjänst","Ange om tjänsten ingår i avropet (Ja/Nej)","Följande ska anges för respektive tjänst",null,"Schemalagda timmar",null,"Ej schemalagda timmar (option)",null,"Kort beskrivning av tjänst eller referera till bilaga",null,null,"Stationär eller ronderande ordningsvakt (välj i lista)",null,null,"Vid behov specificera tjänster, annan information eller hänvisa till bilaga.",null,null,null,"Enhet","Schemalagda timmar (exkl OB)","Ej schemalagda timmar (exkl OB)",null,"Beräknat pris per månad"]
[null,"Ordningsvakter",null,"Beräknat antal timmar per månad.\nStationär eller ronderande ordningsvakt.",null,"Antal timmar/månad",null,null,null,null,null,null,null,null,null,null,null,null,null,"Timmar",{"$f":"IF(F83=\"\",\"\",F83)","v":""},{"$f":"IF(H83=\"\",\"\",H83)","v":""},null,{"$f":"IFERROR((U84+V84),0)","v":0}]
[null,null,null,null,null,null,null,null,null,null,null,null,null,null,null,null,null,null,null,"Timpris"]
[null,null,null,null,null,null,null,null,null,null,null,null,null,null,null,null,null,null,null,"Summa",{"$f":"IFERROR(IF(U83*U82=0,0,U83*U82),0)","v":0},{"$f":"IFERROR(IF(V83*V82=0,0,V83*V82),0)","v":0}]
[]
[null,"Tjänst","Ange om tjänsten ingår i avropet (Ja/Nej)","Följande ska anges för respektive tjänst",null,"Antal utryckningar/ månad",null,"Definitionen av inställelsetid (välj i lista):",null,"Ryck ska ske med x antal väktare (välj i lista):",null,"Kort beskrivning av tjänst eller referera till bilaga",null,null,null,"Vid behov specificera tjänster, annan information eller hänvisa till bilaga.",null,null,null,null,null,"Pris per utryckning en väktare (1)","Pris per utryckning två väktare (2)","Beräknat pris per månad"]
[null,"Larmutryckning",null,"Beräknat antal utryckningar per månad, definition av inställelsetid samt om utryckning ska ske med en eller två väktare.",null,null,null,null,null,null,null,null,null,null,null,null,null,null,null,null,null,null,null,{"$f":"IFERROR(IF($J$87=\"En väktare\",V87*F87,W87*F87),0)","v":0}]
[]
[]
[]
[null,"Tjänst","Ange om tjänsten ingår i avropet (Ja/Nej)","Följande ska anges för respektive tjänst",null,"Antal utryckningar/ månad",null,"Definitionen av inställelsetid (välj i lista):",null,"Ryck ska ske med x antal väktare (välj i lista):",null,"Kort beskrivning av tjänst eller referera till bilaga",null,null,null,"Vid behov specificera tjänster, annan information eller hänvisa till bilaga.",null,null,null,null,null,"Pris per utryckning en väktare (1)","Pris per utryckning två väktare (2)","Beräknat pris per månad"]
[null,"Larmutryckning",null,"Beräknat antal utryckningar per månad, definition av inställelsetid samt om utryckning ska ske med en eller två väktare.",null,null,null,null,null,null,null,null,null,null,null,null,null,null,null,null,null,null,null,{"$f":"IFERROR(IF($J$92=\"En väktare\",V92*F92,W92*F92),0)","v":0}]
[]
[]
[]
[null,"Tjänst","Ange om tjänsten ingår i avropet (Ja/Nej)","Följande ska anges för respektive tjänst",null,"Antal utryckningar/ månad",null,"Definitionen av inställelsetid (välj i lista):",null,"Ryck ska ske med x antal väktare (välj i lista):",null,"Kort beskrivning av tjänst eller referera till bilaga",null,null,null,"Vid behov specificera tjänster, annan information eller hänvisa till bilaga.",null,null,null,null,null,"Pris per utryckning en väktare (1)","Pris per utryckning två väktare (2)","Beräknat pris per månad "]
[null,"Larmutryckning",null,"Beräknat antal utryckningar per månad, definition av inställelsetid samt om utryckning ska ske med en eller två väktare.",null,null,null,null,null,null,null,null,null,null,null,null,null,null,null,null,null,null,null,{"$f":"IFERROR(IF($J$97=\"En väktare\",V97*F97,W97*F97),0)","v":0}]
[]
[]
[]
[null,"Tilläggstjänster"]
[null,"Tilläggstjänst","Ange om tjänsten ingår i avropet (Ja/Nej)","Följande ska anges för respektive tjänst",null,"Schemalagda timmar",null,"Ej schemalagda timmar (option)",null,"Kort beskrivning av tjänst eller referera till bilaga",null,null,null,null,null,"Vid behov specificera tjänster, annan information eller hänvisa till bilaga.",null,null,null,"Enhet","Schemalagda timmar (exkl OB)","Ej schemalagda timmar (exkl OB)",null,"Beräknat pris per månad "]
[null,"Skyddsvakter",null,"Beräknat antal timmar per månad.",null,"Antal timmar/månad",null,null,null,null,null,null,null,null,null,null,null,null,null,"Timmar",{"$f":"IF(F104=\"\",\"\",F104)","v":""},{"$f":"IF(H104=\"\",\"\",H104)","v":""},null,{"$f":"IFERROR(SUM(U105:V105),0)","v":0}]
[null,null,null,null,null,null,null,null,null,null,null,null,null,null,null,null,null,null,null,"Timpris"]
[null,null,null,null,null,null,null,null,null,null,null,null,null,null,null,null,null,null,null,"Summa",{"$f":"IFERROR(IF(U104*U103=0,0,U104*U103),0)","v":0},{"$f":"IFERROR(IF(V104*V103=0,0,V104*V103),0)","v":0}]
[]
[null,"Tilläggstjänst","Ange om tjänsten ingår i avropet (Ja/Nej)","Följande ska anges för respektive tjänst",null,"Schemalagda timmar",null,"Ej schemalagda timmar (option)",null,"Kort beskrivning av tjänst eller referera till bilaga",null,null,null,null,null,"Vid behov specificera tjänster, annan information eller hänvisa till bilaga.",null,null,null,"Enhet","Schemalagda timmar (exkl OB)","Ej schemalagda timmar (exkl OB)",null,"Beräknat pris per månad"]
[null,"Skyddsvakter",null,"Beräknat antal timmar per månad.",null,"Antal timmar/månad",null,null,null,null,null,null,null,null,null,null,null,null,null,"Timmar",{"$f":"IF(F109=\"\",\"\",F109)","v":""},{"$f":"IF(H109=\"\",\"\",H109)","v":""},null,{"$f":"IFERROR(SUM(U110:V110),0)","v":0}]
[null,null,null,null,null,null,null,null,null,null,null,null,null,null,null,null,null,null,null,"Timpris"]
[null,null,null,null,null,null,null,null,null,null,null,null,null,null,null,null,null,null,null,"Summa",{"$f":"IFERROR(IF(U109*U108=0,0,U109*U108),0)","v":0},{"$f":"IFERROR(IF(V109*V108=0,0,V109*V108),0)","v":0}]
[]
[null,"Tilläggstjänst","Ange om tjänsten ingår i avropet (Ja/Nej)","Följande ska anges för respektive tjänst",null,"Schemalagda timmar",null,"Ej schemalagda timmar (option)",null,"Kort beskrivning av tjänst eller referera till bilaga",null,null,null,null,null,"Vid behov specificera tjänster, annan information eller hänvisa till bilaga.",null,null,null,"Enhet","Schemalagda timmar (exkl OB)","Ej schemalagda timmar (exkl OB)",null,"Beräknat pris per månad"]
[null,"Skyddsvakter",null,"Beräknat antal timmar per månad.",null,"Antal timmar/månad",null,null,null,null,null,null,null,null,null,null,null,null,null,"Timmar",{"$f":"IF(F114=\"\",\"\",F114)","v":""},{"$f":"IF(H114=\"\",\"\",H114)","v":""},null,{"$f":"IFERROR(SUM(U115:V115),0)","v":0}]
[null,null,null,null,null,null,null,null,null,null,null,null,null,null,null,null,null,null,null,"Timpris"]
[null,null,null,null,null,null,null,null,null,null,null,null,null,null,null,null,null,null,null,"Summa",{"$f":"IFERROR(IF(U114*U113=0,0,U114*U113),0)","v":0},{"$f":"IFERROR(IF(V114*V113=0,0,V114*V113),0)","v":0}]
[]
[null,null,null,null,null,null,null,null,null,null,null,null,null,null,null,null,null,null,null,null,null,null,"Totalt pris (transport till flik 1): ",{"$f":"X113+X108+X103+X97+X92+X87+X82+X77+X72+X66+X60+X54+X48+X42+X36","v":0}]
[]
[]
[null,null,null,null,null,null,null,null,null,null,null,null,null,null,null,null,null,null,null,null,null,"Observera att \"Totalt pris\" grundar sig på angivna och uppskattade volymer och inte är att likställa med den faktiska faktureringen av utförda tjänster.\nAvropsblanketten är ett verktyg för att få in jämförbara avropssvar avseende pris och kvalitet.  "]

{"sheet":"2 Uppdragsbeskrivning","index":2,"n_rows":5,"n_cols":2,"rows_kept":5,"cut":false,"hidden":false,"merged":[[2,1,2,5],[4,1,4,5]]}
[]
[]
[null,"Uppdragsbeskrivning"]
[null,"(alt. hänvisa till bilaga)"]
[null,{"$f":"\"Avser avropsnumret \"&'1 Specifikation'!B15","v":"Avser avropsnumret "}]

{"sheet":"3 Avtalstecknande","index":3,"n_rows":35,"n_cols":4,"rows_kept":35,"cut":false,"hidden":false,"merged":[[39,1,39,3],[20,1,20,3],[35,1,35,3],[5,1,5,3],[36,1,36,3],[37,1,37,3],[38,1,38,3],[7,1,7,3],[16,1,16,3],[17,1,17,3]]}
[null,null,null,{"$f":"\"Avrop nr: \"&'1 Specifikation'!B15","v":"Avrop nr: "}]
[]
[]
[]
[null,"Kontrakt"]
[null,{"$f":"\"Detta kontrakt reglerar avrop från ramavtalsområde \"&'1 Specifikation'!J5&\", \"&'1 Specifikation'!J8","v":"Detta kontrakt reglerar avrop från ramavtalsområde Bevakningstjänster och larmcentraltjänster, 23.3-4138-2018"}]
[null,"Kontraktets omfattning"]
[null,"Leveransens omfattning och villkor framgår av Kontraktet med tillhörande bilagor samt Ramavtalet. Om handlingarna innehåller motstridiga uppgifter ska handlingarna gälla i nedan nämnd ordning om inte omständigheterna uppenbarligen föranleder annat."]
[null,"1. Säkerhetsskyddsavtal"]
[null,"2. Personuppgiftsbiträdesavtal"]
[null,"3. Skriftliga ändringar och tillägg till Kontrakt"]
[null,"4. Kontrakt med bilagor, inkl. Allmänna villkor"]
[null,"5. Eventuellt kompletterande Avropsförfrågan"]
[null,"6. Avropsförfrågan med bilagor "]
[null,"7. Eventuella tillåtna kompletteringar av Avropssvar"]
[null,"8. Avropssvar med bilagor"]
[]
[null,"Innehåller leverantörens avropssvar uppgifter som inte efterfrågats i avropsblanketten är dessa uppgifter giltiga endast om en skriftlig överenskommelse träffas särskilt angående detta. Hänvisning till leverantörens egna allmänna villkor eller motsvarande är endast giltiga om en särskild överenskommelse avseende detta tecknas."]
[]
[null,"Underskrift"]
[null,"Underskriften avser ett kontraktstecknande. Efter undertecknande av bägge parter utgör denna blankett tillsammans med ramavtalets allmänna villkor enligt ovan ett kontrakt mellan parterna.\n\nDetta kontrakt har upprättats i två exemplar varav parterna tagit var sitt."]
[]
[null,"Avropande organisation",null,"Leverantör"]
[null,{"$f":"'1 Specifikation'!B9","v":0},null,{"$f":"'1 Specifikation'!Q9","v":0}]
[null,"Org.nr.",null,"Org.nr."]
[null,{"$f":"'1 Specifikation'!H9","v":0},null,{"$f":"'1 Specifikation'!W9","v":0}]
[]
[null,"Ort, datum",null,"Ort, datum"]
[]
[]
[null,"Namn, befattning \n(behörig företrädare för avropande organisation)",null,"Namn, befattning \n(behörig företrädare för leverantören)"]
[]
[]
[]
[null,"Eventuella bilagor till kontraktet"]

{"sheet":"Admin","index":4,"n_rows":122,"n_cols":36,"rows_kept":122,"cut":false,"hidden":true,"merged":[]}
[null,null,null,null,null,null,null,null,null,"ResVarTja",null,null,null,null,null,null,null,{"$f":"IF('1 Specifikation'!H104=\"Ja\",'1 Specifikation'!G104,\"\")","v":""},"SammanstRegioner"]
[null,null,null,"Delområde 1","Delområde 2","Delområde 3","Delområde 4","Delområde 5","Delområde 6",{"$f":"USRDelområde","v":{"$error":"#NAME?"}},null,null,null,null,null,null,null,{"$f":"IF('1 Specifikation'!H105=\"Ja\",'1 Specifikation'!G105,\"\")","v":""},{"$f":"T5&T6&T7&T8&T9&T10&T11&T12&T13&T14&T15&T16&T17&T18&T19&T20&T21&T22&T23&T24&T25&T26","v":""}]
[null,null,"TblDelområde","Välj vara/tjänst","Välj vara/tjänst","Välj vara/tjänst","Välj vara/tjänst","Välj vara/tjänst","Välj vara/tjänst",{"$f":"IFERROR(IF(INDEX(D3:I3,MATCH(J$2,D$2:I$2,0))=0,\"\",INDEX(D3:I3,MATCH(J$2,D$2:I$2,0))),\"\")","v":""}]
[null,null,"Välj delområde","Delområde 1/Vara/Tjanst 1","Delområde 2/Vara/Tjanst 1","Delområde 3/Vara/Tjanst 1","Delområde 4/Vara/Tjanst 1","Delområde 5/Vara/Tjanst 1","Delområde 6/Vara/Tjanst 1",{"$f":"IFERROR(IF(INDEX(D4:I4,MATCH(J$2,D$2:I$2,0))=0,\"\",INDEX(D4:I4,MATCH(J$2,D$2:I$2,0))),\"\")","v":""},null,null,null,null,null,null,"TblRegionLista","TblRegionSamst"]
[null,null,"Delområde 1","Delområde 1/Vara/Tjanst 2","Delområde 2/Vara/Tjanst 2","Delområde 3/Vara/Tjanst 2","Delområde 4/Vara/Tjanst 2","Delområde 5/Vara/Tjanst 2","Delområde 6/Vara/Tjanst 2",{"$f":"IFERROR(IF(INDEX(D5:I5,MATCH(J$2,D$2:I$2,0))=0,\"\",INDEX(D5:I5,MATCH(J$2,D$2:I$2,0))),\"\")","v":""},null,null,{"$f":"IF('1 Specifikation'!C108=\"Ja\",'1 Specifikation'!B108,\"\")","v":""},null,null,null,{"$f":"IF('1.1 Specifikation utökad'!C6=\"X\",'1.1 Specifikation utökad'!B6,\"\")","v":""},{"$f":"IFERROR(INDEX($Q$5:$Q$26,SMALL(IF($Q$5:$Q$26<>\"\",ROW($Q$5:$Q$26)-ROW(Q$5)+1),ROWS(R$5:R5))),\"\")","v":""},{"$f":"IF(R6=\"\",\".\",\", \")","v":"."},{"$f":"IF(R5=\"\",\"\",R5&S5)","v":""}]
[null,null,"Delområde 2","Delområde 1/Vara/Tjanst 3","Delområde 2/Vara/Tjanst 3","Delområde 3/Vara/Tjanst 3","Delområde 4/Vara/Tjanst 3","Delområde 5/Vara/Tjanst 3","Delområde 6/Vara/Tjanst 3","",null,null,{"$f":"IF('1 Specifikation'!C109=\"Ja\",'1 Specifikation'!B109,\"\")","v":""},null,null,null,{"$f":"IF('1.1 Specifikation utökad'!C7=\"X\",'1.1 Specifikation utökad'!B7,\"\")","v":""},{"$f":"IFERROR(INDEX($Q$5:$Q$26,SMALL(IF($Q$5:$Q$26<>\"\",ROW($Q$5:$Q$26)-ROW(Q$5)+1),ROWS(R$5:R6))),\"\")","v":""},{"$f":"IF(R7=\"\",\".\",\", \")","v":"."},{"$f":"IF(R6=\"\",\"\",R6&S6)","v":""}]
[null,null,"Delområde 3","Delområde 1/Vara/Tjanst 4","Delområde 2/Vara/Tjanst 4","Delområde 3/Vara/Tjanst 4","Delområde 4/Vara/Tjanst 4","Delområde 5/Vara/Tjanst 4","Delområde 6/Vara/Tjanst 4","",null,null,{"$f":"IF('1 Specifikation'!C110=\"Ja\",'1 Specifikation'!B110,\"\")","v":""},null,null,null,{"$f":"IF('1.1 Specifikation utökad'!C8=\"X\",'1.1 Specifikation utökad'!B8,\"\")","v":""},{"$f":"IFERROR(INDEX($Q$5:$Q$26,SMALL(IF($Q$5:$Q$26<>\"\",ROW($Q$5:$Q$26)-ROW(Q$5)+1),ROWS(R$5:R7))),\"\")","v":""},".",""]
[null,null,"Delområde 4","Delområde 1/Vara/Tjanst 5","Delområde 2/Vara/Tjanst 5","Delområde 3/Vara/Tjanst 5","Delområde 4/Vara/Tjanst 5","Delområde 5/Vara/Tjanst 5","Delområde 6/Vara/Tjanst 5","",null,null,{"$f":"IF('1 Specifikation'!C111=\"Ja\",'1 Specifikation'!B111,\"\")","v":""},null,null,null,{"$f":"IF('1.1 Specifikation utökad'!C9=\"X\",'1.1 Specifikation utökad'!B9,\"\")","v":""},{"$f":"IFERROR(INDEX($Q$5:$Q$26,SMALL(IF($Q$5:$Q$26<>\"\",ROW($Q$5:$Q$26)-ROW(Q$5)+1),ROWS(R$5:R8))),\"\")","v":""},".",""]
[null,null,"Delområde 5","Delområde 1/Vara/Tjanst 6","Delområde 2/Vara/Tjanst 6","Delområde 3/Vara/Tjanst 6","Delområde 4/Vara/Tjanst 6","Delområde 5/Vara/Tjanst 6","Delområde 6/Vara/Tjanst 6","",null,null,{"$f":"IF('1 Specifikation'!C112=\"Ja\",'1 Specifikation'!B112,\"\")","v":""},null,null,null,{"$f":"IF('1.1 Specifikation utökad'!C10=\"X\",'1.1 Specifikation utökad'!B10,\"\")","v":""},{"$f":"IFERROR(INDEX($Q$5:$Q$26,SMALL(IF($Q$5:$Q$26<>\"\",ROW($Q$5:$Q$26)-ROW(Q$5)+1),ROWS(R$5:R9))),\"\")","v":""},".",""]
[null,null,"Delområde 6","Delområde 1/Vara/Tjanst 7","Delområde 2/Vara/Tjanst 7","Delområde 3/Vara/Tjanst 7","Delområde 4/Vara/Tjanst 7","Delområde 5/Vara/Tjanst 7","Delområde 6/Vara/Tjanst 7","",null,null,{"$f":"IF('1 Specifikation'!C113=\"Ja\",'1 Specifikation'!B113,\"\")","v":""},null,null,null,{"$f":"IF('1.1 Specifikation utökad'!C11=\"X\",'1.1 Specifikation utökad'!B11,\"\")","v":""},{"$f":"IFERROR(INDEX($Q$5:$Q$26,SMALL(IF($Q$5:$Q$26<>\"\",ROW($Q$5:$Q$26)-ROW(Q$5)+1),ROWS(R$5:R10))),\"\")","v":""},".",""]
[null,null,null,"Delområde 1/Vara/Tjanst 8","Delområde 2/Vara/Tjanst 8","Delområde 3/Vara/Tjanst 8","Delområde 4/Vara/Tjanst 8","Delområde 5/Vara/Tjanst 8","Delområde 6/Vara/Tjanst 8","",null,null,{"$f":"IF('1 Specifikation'!C114=\"Ja\",'1 Specifikation'!B114,\"\")","v":""},null,null,null,{"$f":"IF('1.1 Specifikation utökad'!C12=\"X\",'1.1 Specifikation utökad'!B12,\"\")","v":""},{"$f":"IFERROR(INDEX($Q$5:$Q$26,SMALL(IF($Q$5:$Q$26<>\"\",ROW($Q$5:$Q$26)-ROW(Q$5)+1),ROWS(R$5:R11))),\"\")","v":""},".",""]
[null,null,null,"Delområde 1/Vara/Tjanst 9","Delområde 2/Vara/Tjanst 9","Delområde 3/Vara/Tjanst 9","Delområde 4/Vara/Tjanst 9","Delområde 5/Vara/Tjanst 9","Delområde 6/Vara/Tjanst 9","",null,null,{"$f":"IF('1 Specifikation'!C115=\"Ja\",'1 Specifikation'!B115,\"\")","v":""},null,null,null,{"$f":"IF('1.1 Specifikation utökad'!C13=\"X\",'1.1 Specifikation utökad'!B13,\"\")","v":""},{"$f":"IFERROR(INDEX($Q$5:$Q$26,SMALL(IF($Q$5:$Q$26<>\"\",ROW($Q$5:$Q$26)-ROW(Q$5)+1),ROWS(R$5:R12))),\"\")","v":""},".",""]
[null,null,null,"Delområde 1/Vara/Tjanst 10","Delområde 2/Vara/Tjanst 10","Delområde 3/Vara/Tjanst 10","Delområde 4/Vara/Tjanst 10","Delområde 5/Vara/Tjanst 10","Delområde 6/Vara/Tjanst 10","",null,null,{"$f":"IF('1 Specifikation'!C116=\"Ja\",'1 Specifikation'!B116,\"\")","v":""},null,null,null,{"$f":"IF('1.1 Specifikation utökad'!C14=\"X\",'1.1 Specifikation utökad'!B14,\"\")","v":""},{"$f":"IFERROR(INDEX($Q$5:$Q$26,SMALL(IF($Q$5:$Q$26<>\"\",ROW($Q$5:$Q$26)-ROW(Q$5)+1),ROWS(R$5:R13))),\"\")","v":""},".",""]
[null,null,null,"Delområde 1/Vara/Tjanst 11","Delområde 2/Vara/Tjanst 11","Delområde 3/Vara/Tjanst 11","Delområde 4/Vara/Tjanst 11","Delområde 5/Vara/Tjanst 11","Delområde 6/Vara/Tjanst 11","",null,null,{"$f":"IF('1 Specifikation'!C117=\"Ja\",'1 Specifikation'!B117,\"\")","v":""},null,null,null,{"$f":"IF('1.1 Specifikation utökad'!C15=\"X\",'1.1 Specifikation utökad'!B15,\"\")","v":""},{"$f":"IFERROR(INDEX($Q$5:$Q$26,SMALL(IF($Q$5:$Q$26<>\"\",ROW($Q$5:$Q$26)-ROW(Q$5)+1),ROWS(R$5:R14))),\"\")","v":""},".",""]
[null,null,null,"Delområde 1/Vara/Tjanst 12","Delområde 2/Vara/Tjanst 12","Delområde 3/Vara/Tjanst 12","Delområde 4/Vara/Tjanst 12","Delområde 5/Vara/Tjanst 12","Delområde 6/Vara/Tjanst 12","",null,null,{"$f":"IF('1 Specifikation'!C118=\"Ja\",'1 Specifikation'!B118,\"\")","v":""},null,null,null,{"$f":"IF('1.1 Specifikation utökad'!C16=\"X\",'1.1 Specifikation utökad'!B16,\"\")","v":""},{"$f":"IFERROR(INDEX($Q$5:$Q$26,SMALL(IF($Q$5:$Q$26<>\"\",ROW($Q$5:$Q$26)-ROW(Q$5)+1),ROWS(R$5:R15))),\"\")","v":""},".",""]
[null,null,null,"Delområde 1/Vara/Tjanst 13","Delområde 2/Vara/Tjanst 13","Delområde 3/Vara/Tjanst 13","Delområde 4/Vara/Tjanst 13","Delområde 5/Vara/Tjanst 13","Delområde 6/Vara/Tjanst 13","",null,null,{"$f":"IF('1 Specifikation'!C119=\"Ja\",'1 Specifikation'!B119,\"\")","v":""},null,null,null,{"$f":"IF('1.1 Specifikation utökad'!C17=\"X\",'1.1 Specifikation utökad'!B17,\"\")","v":""},{"$f":"IFERROR(INDEX($Q$5:$Q$26,SMALL(IF($Q$5:$Q$26<>\"\",ROW($Q$5:$Q$26)-ROW(Q$5)+1),ROWS(R$5:R16))),\"\")","v":""},".",""]
[null,null,null,"Delområde 1/Vara/Tjanst 14","Delområde 2/Vara/Tjanst 14","Delområde 3/Vara/Tjanst 14","Delområde 4/Vara/Tjanst 14","Delområde 5/Vara/Tjanst 14","Delområde 6/Vara/Tjanst 14","",null,null,{"$f":"IF('1 Specifikation'!C120=\"Ja\",'1 Specifikation'!B120,\"\")","v":""},null,null,null,{"$f":"IF('1.1 Specifikation utökad'!C18=\"X\",'1.1 Specifikation utökad'!B18,\"\")","v":""},{"$f":"IFERROR(INDEX($Q$5:$Q$26,SMALL(IF($Q$5:$Q$26<>\"\",ROW($Q$5:$Q$26)-ROW(Q$5)+1),ROWS(R$5:R17))),\"\")","v":""},".",""]
[null,null,null,"Delområde 1/Vara/Tjanst 15","Delområde 2/Vara/Tjanst 15","Delområde 3/Vara/Tjanst 15","Delområde 4/Vara/Tjanst 15","Delområde 5/Vara/Tjanst 15","Delområde 6/Vara/Tjanst 15","",null,null,{"$f":"IF('1 Specifikation'!C121=\"Ja\",'1 Specifikation'!B121,\"\")","v":""},null,null,null,{"$f":"IF('1.1 Specifikation utökad'!C19=\"X\",'1.1 Specifikation utökad'!B19,\"\")","v":""},{"$f":"IFERROR(INDEX($Q$5:$Q$26,SMALL(IF($Q$5:$Q$26<>\"\",ROW($Q$5:$Q$26)-ROW(Q$5)+1),ROWS(R$5:R18))),\"\")","v":""},".",""]
[null,null,null,"Delområde 1/Vara/Tjanst 16","Delområde 2/Vara/Tjanst 16","Delområde 3/Vara/Tjanst 16","Delområde 4/Vara/Tjanst 16","Delområde 5/Vara/Tjanst 16","Delområde 6/Vara/Tjanst 16","",null,null,{"$f":"IF('1 Specifikation'!C122=\"Ja\",'1 Specifikation'!B122,\"\")","v":""},null,null,null,{"$f":"IF('1.1 Specifikation utökad'!C20=\"X\",'1.1 Specifikation utökad'!B20,\"\")","v":""},{"$f":"IFERROR(INDEX($Q$5:$Q$26,SMALL(IF($Q$5:$Q$26<>\"\",ROW($Q$5:$Q$26)-ROW(Q$5)+1),ROWS(R$5:R19))),\"\")","v":""},".",""]
[null,null,null,"Delområde 1/Vara/Tjanst 17","Delområde 2/Vara/Tjanst 17","Delområde 3/Vara/Tjanst 17","Delområde 4/Vara/Tjanst 17","Delområde 5/Vara/Tjanst 17","Delområde 6/Vara/Tjanst 17","",null,null,{"$f":"IF('1 Specifikation'!C123=\"Ja\",'1 Specifikation'!B123,\"\")","v":""},null,null,null,{"$f":"IF('1.1 Specifikation utökad'!C21=\"X\",'1.1 Specifikation utökad'!B21,\"\")","v":""},{"$f":"IFERROR(INDEX($Q$5:$Q$26,SMALL(IF($Q$5:$Q$26<>\"\",ROW($Q$5:$Q$26)-ROW(Q$5)+1),ROWS(R$5:R20))),\"\")","v":""},".",""]
[null,null,null,"Delområde 1/Vara/Tjanst 18","Delområde 2/Vara/Tjanst 18","Delområde 3/Vara/Tjanst 18","Delområde 4/Vara/Tjanst 18","Delområde 5/Vara/Tjanst 18","Delområde 6/Vara/Tjanst 18","",null,null,{"$f":"IF('1 Specifikation'!C124=\"Ja\",'1 Specifikation'!B124,\"\")","v":""},null,null,null,{"$f":"IF('1.1 Specifikation utökad'!C22=\"X\",'1.1 Specifikation utökad'!B22,\"\")","v":""},{"$f":"IFERROR(INDEX($Q$5:$Q$26,SMALL(IF($Q$5:$Q$26<>\"\",ROW($Q$5:$Q$26)-ROW(Q$5)+1),ROWS(R$5:R21))),\"\")","v":""},".",""]
[null,null,null,"Delområde 1/Vara/Tjanst 19","Delområde 2/Vara/Tjanst 19","Delområde 3/Vara/Tjanst 19","Delområde 4/Vara/Tjanst 19","Delområde 5/Vara/Tjanst 19","Delområde 6/Vara/Tjanst 19","",null,null,{"$f":"IF('1 Specifikation'!C125=\"Ja\",'1 Specifikation'!B125,\"\")","v":""},null,null,null,{"$f":"IF('1.1 Specifikation utökad'!C23=\"X\",'1.1 Specifikation utökad'!B23,\"\")","v":""},{"$f":"IFERROR(INDEX($Q$5:$Q$26,SMALL(IF($Q$5:$Q$26<>\"\",ROW($Q$5:$Q$26)-ROW(Q$5)+1),ROWS(R$5:R22))),\"\")","v":""},".",""]
[null,null,null,"Delområde 1/Vara/Tjanst 20","Delområde 2/Vara/Tjanst 20","Delområde 3/Vara/Tjanst 20","Delområde 4/Vara/Tjanst 20","Delområde 5/Vara/Tjanst 20","Delområde 6/Vara/Tjanst 20","",null,null,{"$f":"IF('1 Specifikation'!C126=\"Ja\",'1 Specifikation'!B126,\"\")","v":""},null,null,null,{"$f":"IF('1.1 Specifikation utökad'!C24=\"X\",'1.1 Specifikation utökad'!B24,\"\")","v":""},{"$f":"IFERROR(INDEX($Q$5:$Q$26,SMALL(IF($Q$5:$Q$26<>\"\",ROW($Q$5:$Q$26)-ROW(Q$5)+1),ROWS(R$5:R23))),\"\")","v":""},".",""]
[null,null,null,"Delområde 1/Vara/Tjanst 21","Delområde 2/Vara/Tjanst 21","Delområde 3/Vara/Tjanst 21","Delområde 4/Vara/Tjanst 21","Delområde 5/Vara/Tjanst 21","Delområde 6/Vara/Tjanst 21","",null,null,{"$f":"IF('1 Specifikation'!C127=\"Ja\",'1 Specifikation'!B127,\"\")","v":""},null,null,null,{"$f":"IF('1.1 Specifikation utökad'!C25=\"X\",'1.1 Specifikation utökad'!B25,\"\")","v":""},{"$f":"IFERROR(INDEX($Q$5:$Q$26,SMALL(IF($Q$5:$Q$26<>\"\",ROW($Q$5:$Q$26)-ROW(Q$5)+1),ROWS(R$5:R24))),\"\")","v":""},".",""]
[null,null,null,null,null,null,null,null,null,null,null,null,{"$f":"IF('1 Specifikation'!C128=\"Ja\",'1 Specifikation'!B128,\"\")","v":""},"SammanstRegioner",null,null,{"$f":"IF('1.1 Specifikation utökad'!C26=\"X\",'1.1 Specifikation utökad'!B26,\"\")","v":""},{"$f":"IFERROR(INDEX($Q$5:$Q$26,SMALL(IF($Q$5:$Q$26<>\"\",ROW($Q$5:$Q$26)-ROW(Q$5)+1),ROWS(R$5:R25))),\"\")","v":""},".",""]
[null,null,null,null,null,null,null,null,null,null,null,null,{"$f":"IF('1 Specifikation'!C129=\"Ja\",'1 Specifikation'!B129,\"\")","v":""},{"$f":"O29&O30&O31&O32&O33&O34&O35&O36&O37&O38&O39&O40&O41&O42&O43&O44&O45&O46&O47&O48&O49&O50","v":""},null,null,{"$f":"IF('1.1 Specifikation utökad'!C27=\"X\",'1.1 Specifikation utökad'!B27,\"\")","v":""},{"$f":"IFERROR(INDEX($Q$5:$Q$26,SMALL(IF($Q$5:$Q$26<>\"\",ROW($Q$5:$Q$26)-ROW(Q$5)+1),ROWS(R$5:R26))),\"\")","v":""},".",""]
[null,null,null,"Vara/Tjanster",null,null,null,null,null,"ResOpt"]
[null,null,null,"Välj Vara/Tjanst",{"$f":"D28","v":"Välj Vara/Tjanst"},{"$f":"E28","v":"Välj Vara/Tjanst"},{"$f":"F28","v":"Välj Vara/Tjanst"},{"$f":"G28","v":"Välj Vara/Tjanst"},{"$f":"H28","v":"Välj Vara/Tjanst"},{"$f":"INDEX(D28:I28,MATCH(J$2,D$2:I$2,0))","v":{"$error":"#NAME?"}},null,"TblRegionLista","TblRegionSamst"]
[null,null,null,"Delområde 1/Vara/Tjanst 1","Delområde 2/Vara/Tjanst 1","Delområde 3/Vara/Tjanst 1","Delområde 4/Vara/Tjanst 1","Delområde 5/Vara/Tjanst 1","Delområde 6/Vara/Tjanst 1",{"$f":"IFERROR(IF(INDEX(D29:I29,MATCH(J$2,D$2:I$2,0))=0,\"\",INDEX(D29:I29,MATCH(J$2,D$2:I$2,0))),\"\")","v":""},null,{"$f":"IF('1 Specifikation'!C40=\"X\",'1 Specifikation'!B40,\"\")","v":""},{"$f":"IFERROR(INDEX($L$29:$L$50,SMALL(IF($L$29:$L$50<>\"\",ROW($L$29:$L$50)-ROW(L$29)+1),ROWS(M$29:M29))),\"\")","v":""},{"$f":"IF(M30=\"\",\".\",\", \")","v":"."},{"$f":"IF(M29=\"\",\"\",M29&N29)","v":""}]
[null,null,null,"Delområde 1/Vara/Tjanst 2","Delområde 2/Vara/Tjanst 2","Delområde 3/Vara/Tjanst 2","Delområde 4/Vara/Tjanst 2","Delområde 5/Vara/Tjanst 2","Delområde 6/Vara/Tjanst 2",{"$f":"IFERROR(IF(INDEX(D30:I30,MATCH(J$2,D$2:I$2,0))=0,\"\",INDEX(D30:I30,MATCH(J$2,D$2:I$2,0))),\"\")","v":""},null,{"$f":"IF('1 Specifikation'!C41=\"X\",'1 Specifikation'!B41,\"\")","v":""},{"$f":"IFERROR(INDEX($L$29:$L$50,SMALL(IF($L$29:$L$50<>\"\",ROW($L$29:$L$50)-ROW(L$29)+1),ROWS(M$29:M30))),\"\")","v":""},{"$f":"IF(M31=\"\",\".\",\", \")","v":"."},{"$f":"IF(M30=\"\",\"\",M30&N30)","v":""}]
[null,null,null,"Delområde 1/Vara/Tjanst 3","Delområde 2/Vara/Tjanst 3","Delområde 3/Vara/Tjanst 3","Delområde 4/Vara/Tjanst 3","Delområde 5/Vara/Tjanst 3","Delområde 6/Vara/Tjanst 3","",null,{"$f":"IF('1 Specifikation'!C42=\"X\",'1 Specifikation'!B42,\"\")","v":""},{"$f":"IFERROR(INDEX($L$29:$L$50,SMALL(IF($L$29:$L$50<>\"\",ROW($L$29:$L$50)-ROW(L$29)+1),ROWS(M$29:M31))),\"\")","v":""},".",""]
[null,null,null,"Delområde 1/Vara/Tjanst 4","Delområde 2/Vara/Tjanst 4","Delområde 3/Vara/Tjanst 4","Delområde 4/Vara/Tjanst 4","Delområde 5/Vara/Tjanst 4","Delområde 6/Vara/Tjanst 4","",null,{"$f":"IF('1 Specifikation'!C43=\"X\",'1 Specifikation'!B43,\"\")","v":""},{"$f":"IFERROR(INDEX($L$29:$L$50,SMALL(IF($L$29:$L$50<>\"\",ROW($L$29:$L$50)-ROW(L$29)+1),ROWS(M$29:M32))),\"\")","v":""},".",""]
[null,null,null,"Delområde 1/Vara/Tjanst 5","Delområde 2/Vara/Tjanst 5","Delområde 3/Vara/Tjanst 5","Delområde 4/Vara/Tjanst 5","Delområde 5/Vara/Tjanst 5","Delområde 6/Vara/Tjanst 5","",null,{"$f":"IF('1 Specifikation'!C44=\"X\",'1 Specifikation'!B44,\"\")","v":""},{"$f":"IFERROR(INDEX($L$29:$L$50,SMALL(IF($L$29:$L$50<>\"\",ROW($L$29:$L$50)-ROW(L$29)+1),ROWS(M$29:M33))),\"\")","v":""},".",""]
[null,null,null,"Delområde 1/Vara/Tjanst 6","Delområde 2/Vara/Tjanst 6","Delområde 3/Vara/Tjanst 6","Delområde 4/Vara/Tjanst 6","Delområde 5/Vara/Tjanst 6","Delområde 6/Vara/Tjanst 6","",null,{"$f":"IF('1 Specifikation'!C45=\"X\",'1 Specifikation'!B45,\"\")","v":""},{"$f":"IFERROR(INDEX($L$29:$L$50,SMALL(IF($L$29:$L$50<>\"\",ROW($L$29:$L$50)-ROW(L$29)+1),ROWS(M$29:M34))),\"\")","v":""},".",""]
[null,null,null,"Delområde 1/Vara/Tjanst 7","Delområde 2/Vara/Tjanst 7","Delområde 3/Vara/Tjanst 7","Delområde 4/Vara/Tjanst 7","Delområde 5/Vara/Tjanst 7","Delområde 6/Vara/Tjanst 7","",null,{"$f":"IF('1 Specifikation'!C46=\"X\",'1 Specifikation'!B46,\"\")","v":""},{"$f":"IFERROR(INDEX($L$29:$L$50,SMALL(IF($L$29:$L$50<>\"\",ROW($L$29:$L$50)-ROW(L$29)+1),ROWS(M$29:M35))),\"\")","v":""},".",""]
[null,null,null,"Delområde 1/Vara/Tjanst 8","Delområde 2/Vara/Tjanst 8","Delområde 3/Vara/Tjanst 8","Delområde 4/Vara/Tjanst 8","Delområde 5/Vara/Tjanst 8","Delområde 6/Vara/Tjanst 8","",null,{"$f":"IF('1 Specifikation'!C47=\"X\",'1 Specifikation'!B47,\"\")","v":""},{"$f":"IFERROR(INDEX($L$29:$L$50,SMALL(IF($L$29:$L$50<>\"\",ROW($L$29:$L$50)-ROW(L$29)+1),ROWS(M$29:M36))),\"\")","v":""},".","",null,{"$f":"'1 Specifikation'!$B$150","v":"Välj tjänst"},{"$f":"'1 Specifikation'!$B$151","v":"Välj tjänst"},{"$f":"'1 Specifikation'!$B$152","v":"Välj tjänst"},{"$f":"'1 Specifikation'!$B$153","v":"Välj tjänst"},{"$f":"'1 Specifikation'!$B$154","v":"Välj tjänst"},{"$f":"'1 Specifikation'!$B$155","v":"Välj tjänst"},{"$f":"'1 Specifikation'!$B$156","v":"Välj tjänst"},{"$f":"'1 Specifikation'!$B$157","v":"Välj tjänst"},{"$f":"'1 Specifikation'!$B$158","v":"Välj tjänst"},{"$f":"'1 Specifikation'!$B$159","v":"Välj tjänst"},{"$f":"'1 Specifikation'!$B$160","v":"Välj tjänst"},{"$f":"'1 Specifikation'!$B$161","v":"Välj tjänst"},{"$f":"'1 Specifikation'!$B$162","v":"Välj tjänst"},{"$f":"'1 Specifikation'!$B$163","v":"Välj tjänst"},{"$f":"'1 Specifikation'!$B$164","v":"Välj tjänst"},{"$f":"'1 Specifikation'!$B$165","v":"Välj tjänst"},{"$f":"'1 Specifikation'!$B$166","v":"Välj tjänst"},{"$f":"'1 Specifikation'!$B$167","v":"Välj tjänst"},{"$f":"'1 Specifikation'!$B$168","v":"Välj tjänst"},{"$f":"'1 Specifikation'!$B$169","v":"Välj tjänst"}]
[null,null,null,"Delområde 1/Vara/Tjanst 9","Delområde 2/Vara/Tjanst 9","Delområde 3/Vara/Tjanst 9","Delområde 4/Vara/Tjanst 9","Delområde 5/Vara/Tjanst 9","Delområde 6/Vara/Tjanst 9","",null,{"$f":"IF('1 Specifikation'!C48=\"X\",'1 Specifikation'!B48,\"\")","v":""},{"$f":"IFERROR(INDEX($L$29:$L$50,SMALL(IF($L$29:$L$50<>\"\",ROW($L$29:$L$50)-ROW(L$29)+1),ROWS(M$29:M37))),\"\")","v":""},".","",null,"Välj krav","Välj krav","Välj krav","Välj krav","Välj krav","Välj krav","Välj krav","Välj krav","Välj krav","Välj krav","Välj krav","Välj krav","Välj krav","Välj krav","Välj krav","Välj krav","Välj krav","Välj krav","Välj krav","Välj krav"]
[null,null,null,"Delområde 1/Vara/Tjanst 10","Delområde 2/Vara/Tjanst 10","Delområde 3/Vara/Tjanst 10","Delområde 4/Vara/Tjanst 10","Delområde 5/Vara/Tjanst 10","Delområde 6/Vara/Tjanst 10","",null,{"$f":"IF('1 Specifikation'!C49=\"X\",'1 Specifikation'!B49,\"\")","v":""},{"$f":"IFERROR(INDEX($L$29:$L$50,SMALL(IF($L$29:$L$50<>\"\",ROW($L$29:$L$50)-ROW(L$29)+1),ROWS(M$29:M38))),\"\")","v":""},".","",null,{"$f":"IF(IFERROR(INDEX($Q55:$AB55,,MATCH(Q$36,$Q$54:$AB$54,0)),\"\")=0,\"\",(IFERROR(INDEX($Q55:$AB55,,MATCH(Q$36,$Q$54:$AB$54,0)),\"\")))","v":""},{"$f":"IF(IFERROR(INDEX($Q55:$AB55,,MATCH(R$36,$Q$54:$AB$54,0)),\"\")=0,\"\",(IFERROR(INDEX($Q55:$AB55,,MATCH(R$36,$Q$54:$AB$54,0)),\"\")))","v":""},"","","","","","","","","","","","","","","","","",""]
[null,null,null,"Delområde 1/Vara/Tjanst 11","Delområde 2/Vara/Tjanst 11","Delområde 3/Vara/Tjanst 11","Delområde 4/Vara/Tjanst 11","Delområde 5/Vara/Tjanst 11","Delområde 6/Vara/Tjanst 11","",null,{"$f":"IF('1 Specifikation'!C50=\"X\",'1 Specifikation'!B50,\"\")","v":""},{"$f":"IFERROR(INDEX($L$29:$L$50,SMALL(IF($L$29:$L$50<>\"\",ROW($L$29:$L$50)-ROW(L$29)+1),ROWS(M$29:M39))),\"\")","v":""},".","",null,{"$f":"IF(IFERROR(INDEX($Q56:$AB56,,MATCH(Q$36,$Q$54:$AB$54,0)),\"\")=0,\"\",(IFERROR(INDEX($Q56:$AB56,,MATCH(Q$36,$Q$54:$AB$54,0)),\"\")))","v":""},"","","","","","","","","","","","","","","","","","",""]
[null,null,null,"Delområde 1/Vara/Tjanst 12","Delområde 2/Vara/Tjanst 12","Delområde 3/Vara/Tjanst 12","Delområde 4/Vara/Tjanst 12","Delområde 5/Vara/Tjanst 12","Delområde 6/Vara/Tjanst 12","",null,{"$f":"IF('1 Specifikation'!C51=\"X\",'1 Specifikation'!B51,\"\")","v":""},{"$f":"IFERROR(INDEX($L$29:$L$50,SMALL(IF($L$29:$L$50<>\"\",ROW($L$29:$L$50)-ROW(L$29)+1),ROWS(M$29:M40))),\"\")","v":""},".","",null,{"$f":"IF(IFERROR(INDEX($Q57:$AB57,,MATCH(Q$36,$Q$54:$AB$54,0)),\"\")=0,\"\",(IFERROR(INDEX($Q57:$AB57,,MATCH(Q$36,$Q$54:$AB$54,0)),\"\")))","v":""},"","","","","","","","","","","","","","","","","","",""]
[null,null,null,"Delområde 1/Vara/Tjanst 13","Delområde 2/Vara/Tjanst 13","Delområde 3/Vara/Tjanst 13","Delområde 4/Vara/Tjanst 13","Delområde 5/Vara/Tjanst 13","Delområde 6/Vara/Tjanst 13","",null,{"$f":"IF('1 Specifikation'!C52=\"X\",'1 Specifikation'!B52,\"\")","v":""},{"$f":"IFERROR(INDEX($L$29:$L$50,SMALL(IF($L$29:$L$50<>\"\",ROW($L$29:$L$50)-ROW(L$29)+1),ROWS(M$29:M41))),\"\")","v":""},".","",null,{"$f":"IF(IFERROR(INDEX($Q58:$AB58,,MATCH(Q$36,$Q$54:$AB$54,0)),\"\")=0,\"\",(IFERROR(INDEX($Q58:$AB58,,MATCH(Q$36,$Q$54:$AB$54,0)),\"\")))","v":""},"","","","","","","","","","","","","","","","","","",""]
[null,null,null,"Delområde 1/Vara/Tjanst 14","Delområde 2/Vara/Tjanst 14","Delområde 3/Vara/Tjanst 14","Delområde 4/Vara/Tjanst 14","Delområde 5/Vara/Tjanst 14","Delområde 6/Vara/Tjanst 14","",null,{"$f":"IF('1 Specifikation'!C53=\"X\",'1 Specifikation'!B53,\"\")","v":""},{"$f":"IFERROR(INDEX($L$29:$L$50,SMALL(IF($L$29:$L$50<>\"\",ROW($L$29:$L$50)-ROW(L$29)+1),ROWS(M$29:M42))),\"\")","v":""},".","",null,{"$f":"IF(IFERROR(INDEX($Q59:$AB59,,MATCH(Q$36,$Q$54:$AB$54,0)),\"\")=0,\"\",(IFERROR(INDEX($Q59:$AB59,,MATCH(Q$36,$Q$54:$AB$54,0)),\"\")))","v":""},"","","","","","","","","","","","","","","","","","",""]
[null,null,null,"Delområde 1/Vara/Tjanst 15","Delområde 2/Vara/Tjanst 15","Delområde 3/Vara/Tjanst 15","Delområde 4/Vara/Tjanst 15","Delområde 5/Vara/Tjanst 15","Delområde 6/Vara/Tjanst 15","",null,{"$f":"IF('1 Specifikation'!C54=\"X\",'1 Specifikation'!B54,\"\")","v":""},{"$f":"IFERROR(INDEX($L$29:$L$50,SMALL(IF($L$29:$L$50<>\"\",ROW($L$29:$L$50)-ROW(L$29)+1),ROWS(M$29:M43))),\"\")","v":""},".","",null,{"$f":"IF(IFERROR(INDEX($Q60:$AB60,,MATCH(Q$36,$Q$54:$AB$54,0)),\"\")=0,\"\",(IFERROR(INDEX($Q60:$AB60,,MATCH(Q$36,$Q$54:$AB$54,0)),\"\")))","v":""},"","","","","","","","","","","","","","","","","","",""]
[null,null,null,"Delområde 1/Vara/Tjanst 16","Delområde 2/Vara/Tjanst 16","Delområde 3/Vara/Tjanst 16","Delområde 4/Vara/Tjanst 16","Delområde 5/Vara/Tjanst 16","Delområde 6/Vara/Tjanst 16","",null,{"$f":"IF('1 Specifikation'!C55=\"X\",'1 Specifikation'!B55,\"\")","v":""},{"$f":"IFERROR(INDEX($L$29:$L$50,SMALL(IF($L$29:$L$50<>\"\",ROW($L$29:$L$50)-ROW(L$29)+1),ROWS(M$29:M44))),\"\")","v":""},".","",null,{"$f":"IF(IFERROR(INDEX($Q61:$AB61,,MATCH(Q$36,$Q$54:$AB$54,0)),\"\")=0,\"\",(IFERROR(INDEX($Q61:$AB61,,MATCH(Q$36,$Q$54:$AB$54,0)),\"\")))","v":""},"","","","","","","","","","","","","","","","","","",""]
[null,null,null,"Delområde 1/Vara/Tjanst 17","Delområde 2/Vara/Tjanst 17","Delområde 3/Vara/Tjanst 17","Delområde 4/Vara/Tjanst 17","Delområde 5/Vara/Tjanst 17","Delområde 6/Vara/Tjanst 17","",null,{"$f":"IF('1 Specifikation'!C56=\"X\",'1 Specifikation'!B56,\"\")","v":""},{"$f":"IFERROR(INDEX($L$29:$L$50,SMALL(IF($L$29:$L$50<>\"\",ROW($L$29:$L$50)-ROW(L$29)+1),ROWS(M$29:M45))),\"\")","v":""},".","",null,{"$f":"IF(IFERROR(INDEX($Q62:$AB62,,MATCH(Q$36,$Q$54:$AB$54,0)),\"\")=0,\"\",(IFERROR(INDEX($Q62:$AB62,,MATCH(Q$36,$Q$54:$AB$54,0)),\"\")))","v":""},"","","","","","","","","","","","","","","","","","",""]
[null,null,null,"Delområde 1/Vara/Tjanst 18","Delområde 2/Vara/Tjanst 18","Delområde 3/Vara/Tjanst 18","Delområde 4/Vara/Tjanst 18","Delområde 5/Vara/Tjanst 18","Delområde 6/Vara/Tjanst 18","",null,{"$f":"IF('1 Specifikation'!C57=\"X\",'1 Specifikation'!B57,\"\")","v":""},{"$f":"IFERROR(INDEX($L$29:$L$50,SMALL(IF($L$29:$L$50<>\"\",ROW($L$29:$L$50)-ROW(L$29)+1),ROWS(M$29:M46))),\"\")","v":""},".","",null,{"$f":"IF(IFERROR(INDEX($Q63:$AB63,,MATCH(Q$36,$Q$54:$AB$54,0)),\"\")=0,\"\",(IFERROR(INDEX($Q63:$AB63,,MATCH(Q$36,$Q$54:$AB$54,0)),\"\")))","v":""},"","","","","","","","","","","","","","","","","","",""]
[null,null,null,"Delområde 1/Vara/Tjanst 19","Delområde 2/Vara/Tjanst 19","Delområde 3/Vara/Tjanst 19","Delområde 4/Vara/Tjanst 19","Delområde 5/Vara/Tjanst 19","Delområde 6/Vara/Tjanst 19","",null,{"$f":"IF('1 Specifikation'!C58=\"X\",'1 Specifikation'!B58,\"\")","v":""},{"$f":"IFERROR(INDEX($L$29:$L$50,SMALL(IF($L$29:$L$50<>\"\",ROW($L$29:$L$50)-ROW(L$29)+1),ROWS(M$29:M47))),\"\")","v":""},".","",null,{"$f":"IF(IFERROR(INDEX($Q64:$AB64,,MATCH(Q$36,$Q$54:$AB$54,0)),\"\")=0,\"\",(IFERROR(INDEX($Q64:$AB64,,MATCH(Q$36,$Q$54:$AB$54,0)),\"\")))","v":""},"","","","","","","","","","","","","","","","","","",""]
[null,null,null,"Delområde 1/Vara/Tjanst 20","Delområde 2/Vara/Tjanst 20","Delområde 3/Vara/Tjanst 20","Delområde 4/Vara/Tjanst 20","Delområde 5/Vara/Tjanst 20","Delområde 6/Vara/Tjanst 20","",null,{"$f":"IF('1 Specifikation'!C59=\"X\",'1 Specifikation'!B59,\"\")","v":""},{"$f":"IFERROR(INDEX($L$29:$L$50,SMALL(IF($L$29:$L$50<>\"\",ROW($L$29:$L$50)-ROW(L$29)+1),ROWS(M$29:M48))),\"\")","v":""},".",""]
[null,null,null,"Delområde 1/Vara/Tjanst 21","Delområde 2/Vara/Tjanst 21","Delområde 3/Vara/Tjanst 21","Delområde 4/Vara/Tjanst 21","Delområde 5/Vara/Tjanst 21","Delområde 6/Vara/Tjanst 21","",null,{"$f":"IF('1 Specifikation'!C60=\"X\",'1 Specifikation'!B60,\"\")","v":""},{"$f":"IFERROR(INDEX($L$29:$L$50,SMALL(IF($L$29:$L$50<>\"\",ROW($L$29:$L$50)-ROW(L$29)+1),ROWS(M$29:M49))),\"\")","v":""},".",""]
[null,null,null,"Delområde 1/Vara/Tjanst 22","Delområde 2/Vara/Tjanst 22","Delområde 3/Vara/Tjanst 22","Delområde 4/Vara/Tjanst 22","Delområde 5/Vara/Tjanst 22","Delområde 6/Vara/Tjanst 22","",null,{"$f":"IF('1 Specifikation'!C61=\"X\",'1 Specifikation'!B61,\"\")","v":""},{"$f":"IFERROR(INDEX($L$29:$L$50,SMALL(IF($L$29:$L$50<>\"\",ROW($L$29:$L$50)-ROW(L$29)+1),ROWS(M$29:M50))),\"\")","v":""},".",""]
[null,null,null,"Delområde 1/Vara/Tjanst 23","Delområde 2/Vara/Tjanst 23","Delområde 3/Vara/Tjanst 23","Delområde 4/Vara/Tjanst 23","Delområde 5/Vara/Tjanst 23","Delområde 6/Vara/Tjanst 23",""]
[null,null,null,"Delområde 1/Vara/Tjanst 24","Delområde 2/Vara/Tjanst 24","Delområde 3/Vara/Tjanst 24","Delområde 4/Vara/Tjanst 24","Delområde 5/Vara/Tjanst 24","Delområde 6/Vara/Tjanst 24",""]
[null,null,null,"Delområde 1/Vara/Tjanst 25","Delområde 2/Vara/Tjanst 25","Delområde 3/Vara/Tjanst 25","Delområde 4/Vara/Tjanst 25","Delområde 5/Vara/Tjanst 25","Delområde 6/Vara/Tjanst 25",""]
[null,null,null,null,null,null,null,null,null,null,null,null,null,null,null,null,"Ronderande bevakning","Stationär bevakning","Ordningsvakter","Larmutryckning","Larmcentraltjänster","Skyddsvakter","Bevakning av enskild person för dennes skydd","Rådgivning inom skydd och säkerhet","Säkerhetsutbildning","Mottagning och förmedling av automatiska brandlarm","Tillhandahållande av mobilt larm","Fjärrtjänster"]
[null,null,null,null,null,null,null,null,null,"Region",null,"TblValdaTjänster","TblValdaTjänstSlut","TblTilldelKriterier",null,null,"Krav på för uppdraget relevant utbildning, t.ex. inom D-HLR, brandskydd och första hjälpen.","Krav på för uppdraget relevant utbildning, t.ex. inom D-HLR, brandskydd och första hjälpen.","Krav på för uppdraget relevant utbildning, t.ex. inom D-HLR, brandskydd och första hjälpen.","Krav på för uppdraget relevant utbildning, t.ex. inom D-HLR, brandskydd och första hjälpen.","Krav på för uppdraget relevant utbildning, t.ex. inom D-HLR, brandskydd och första hjälpen.","Krav på för uppdraget relevant utbildning, t.ex. inom D-HLR, brandskydd och första hjälpen.","Krav på för uppdraget relevant utbildning, t.ex. inom D-HLR, brandskydd och första hjälpen.","Krav på för uppdraget relevant utbildning, t.ex. inom D-HLR, brandskydd och första hjälpen.","Krav på för uppdraget relevant utbildning, t.ex. inom D-HLR, brandskydd och första hjälpen.","Krav på för uppdraget relevant utbildning, t.ex. inom D-HLR, brandskydd och första hjälpen.","Krav på för uppdraget relevant utbildning, t.ex. inom D-HLR, brandskydd och första hjälpen.","Krav på för uppdraget relevant utbildning, t.ex. inom D-HLR, brandskydd och första hjälpen."," "]
[null,null,null,"TblGrundTilldeln",null,"Tbl krav",null,"TblEnhet",null,"Samtliga län",null,"Välj tjänst",{"$f":"IFERROR(INDEX(TblValdaTjänster,SMALL(IF(TblValdaTjänster<>\"\",ROW(TblValdaTjänster)-ROW(L$56)+1),ROWS(M$56:M56))),\"\")","v":"Välj tjänst"},"Referenser (avropande myndighet har rätt att kräva att ett referensuppdrag är utfört för myndigheten, om leverantören tidigare varit leverantör åt myndigheten)"," ",null,"Krav på utbildning som avropande myndighet tillhandahåller.","Krav på utbildning som avropande myndighet tillhandahåller.","Krav på utbildning som avropande myndighet tillhandahåller.","Krav på utbildning som avropande myndighet tillhandahåller.","Krav på utbildning som avropande myndighet tillhandahåller.","Krav på utbildning som avropande myndighet tillhandahåller.","Krav på utbildning som avropande myndighet tillhandahåller.","Krav på utbildning som avropande myndighet tillhandahåller.","Krav på utbildning som avropande myndighet tillhandahåller.","Krav på utbildning som avropande myndighet tillhandahåller.","Krav på utbildning som avropande myndighet tillhandahåller.","Krav på utbildning som avropande myndighet tillhandahåller."," "]
[null,null,null,null,null,"Välj krav",null,"Styck",null,"Blekinge län",null,{"$f":"IF('1 Specifikation'!C70=\"Ja\",'1 Specifikation'!B70,\"\")","v":""},{"$f":"IFERROR(INDEX(TblValdaTjänster,SMALL(IF(TblValdaTjänster<>\"\",ROW(TblValdaTjänster)-ROW(L$56)+1),ROWS(M$56:M57))),\"\")","v":""},"Tidsåtgång för uppdragets utförande (exempelvis rondtid)"," ",null,"Krav på engelska och/eller annat språk.","Krav på engelska och/eller annat språk.","Krav på engelska och/eller annat språk.","Krav på engelska och/eller annat språk.","Krav på engelska och/eller annat språk.","Krav på engelska och/eller annat språk.","Krav på engelska och/eller annat språk.","Krav på engelska och/eller annat språk.","Krav på engelska och/eller annat språk.","Krav på engelska och/eller annat språk.","Krav på engelska och/eller annat språk.","Krav på engelska och/eller annat språk."," "]
[null,null,null,null,null,"Krav 1",null,"Timmar",null,"Dalarnas län",null,{"$f":"IF('1 Specifikation'!C76=\"Ja\",'1 Specifikation'!B76,\"\")","v":""},{"$f":"IFERROR(INDEX(TblValdaTjänster,SMALL(IF(TblValdaTjänster<>\"\",ROW(TblValdaTjänster)-ROW(L$56)+1),ROWS(M$56:M58))),\"\")","v":""},"Inställelsetid",null,null,"Krav på kompetens och/eller arbetserfarenhet i timmar alternativt år.","Krav på kompetens och/eller arbetserfarenhet i timmar alternativt år.","Krav på kompetens och/eller arbetserfarenhet i timmar alternativt år.","Krav på kompetens och/eller arbetserfarenhet i timmar alternativt år.","Krav på kompetens och/eller arbetserfarenhet i timmar alternativt år.","Krav på kompetens och/eller arbetserfarenhet i timmar alternativt år.","Krav på kompetens och/eller arbetserfarenhet i timmar alternativt år.","Krav på kompetens och/eller arbetserfarenhet i timmar alternativt år.","Krav på kompetens och/eller arbetserfarenhet i timmar alternativt år.","Krav på kompetens och/eller arbetserfarenhet i timmar alternativt år.","Krav på kompetens och/eller arbetserfarenhet i timmar alternativt år.","Krav på kompetens och/eller arbetserfarenhet i timmar alternativt år."," "]
[null,null,null,"Alt. 2. Ekonomiskt mest fördelaktiga (bästa förhållande mellan pris och kvalitet)",null,"Krav 2",null,"Totalpris",null,"Gotlands län",null,{"$f":"IF('1 Specifikation'!C82=\"Ja\",'1 Specifikation'!B82,\"\")","v":""},{"$f":"IFERROR(INDEX(TblValdaTjänster,SMALL(IF(TblValdaTjänster<>\"\",ROW(TblValdaTjänster)-ROW(L$56)+1),ROWS(M$56:M59))),\"\")","v":""},"Pris",null,null,"Krav på kompletterande utrustning (t.ex. batong, handfängsel, vapen eller hund).","Krav på kompletterande utrustning (t.ex. batong, handfängsel, vapen eller hund).","Krav på kompletterande utrustning (t.ex. batong, handfängsel, vapen eller hund).","Krav på kompletterande utrustning (t.ex. batong, handfängsel, vapen eller hund).","Krav på kompletterande utrustning (t.ex. batong, handfängsel, vapen eller hund).","Krav på kompletterande utrustning (t.ex. batong, handfängsel, vapen eller hund).","Krav på kompletterande utrustning (t.ex. batong, handfängsel, vapen eller hund).","Krav på kompletterande utrustning (t.ex. batong, handfängsel, vapen eller hund).","Krav på kompletterande utrustning (t.ex. batong, handfängsel, vapen eller hund).","Krav på kompletterande utrustning (t.ex. batong, handfängsel, vapen eller hund).","Krav på kompletterande utrustning (t.ex. batong, handfängsel, vapen eller hund).","Krav på kompletterande utrustning (t.ex. batong, handfängsel, vapen eller hund)."," "]
[null,null,null,null,null,"Krav 3",null,"År",null,"Gävleborgs län",null,{"$f":"IF('1 Specifikation'!C87=\"Ja\",'1 Specifikation'!B87,\"\")","v":""},{"$f":"IFERROR(INDEX(TblValdaTjänster,SMALL(IF(TblValdaTjänster<>\"\",ROW(TblValdaTjänster)-ROW(L$56)+1),ROWS(M$56:M60))),\"\")","v":""},"Föreslaget genomförande",null,null,"Krav på säkerhetskyddsavtal, säkerhetskontroll och/eller registerkontroll.","Krav på säkerhetskyddsavtal, säkerhetskontroll och/eller registerkontroll.","Krav på säkerhetskyddsavtal, säkerhetskontroll och/eller registerkontroll.","Krav på säkerhetskyddsavtal, säkerhetskontroll och/eller registerkontroll.","Krav på säkerhetskyddsavtal, säkerhetskontroll och/eller registerkontroll.","Krav på säkerhetskyddsavtal, säkerhetskontroll och/eller registerkontroll.","Krav på säkerhetskyddsavtal, säkerhetskontroll och/eller registerkontroll.","Krav på säkerhetskyddsavtal, säkerhetskontroll och/eller registerkontroll.","Krav på säkerhetskyddsavtal, säkerhetskontroll och/eller registerkontroll.","Krav på säkerhetskyddsavtal, säkerhetskontroll och/eller registerkontroll.","Krav på säkerhetskyddsavtal, säkerhetskontroll och/eller registerkontroll.","Krav på säkerhetskyddsavtal, säkerhetskontroll och/eller registerkontroll."," "]
[null,null,null,"TblUtVrd",null,"Krav 4",null,"Bilaga",null,"Hallands län",null,{"$f":"IF('1 Specifikation'!C92=\"Ja\",'1 Specifikation'!B92,\"\")","v":""},{"$f":"IFERROR(INDEX(TblValdaTjänster,SMALL(IF(TblValdaTjänster<>\"\",ROW(TblValdaTjänster)-ROW(L$56)+1),ROWS(M$56:M61))),\"\")","v":""},"Miljö",null,null,"Nivå på beloppsgräns per skada och år i ansvarsförsäkring.","Nivå på beloppsgräns per skada och år i ansvarsförsäkring.","Nivå på beloppsgräns per skada och år i ansvarsförsäkring.","Nivå på beloppsgräns per skada och år i ansvarsförsäkring.","Nivå på beloppsgräns per skada och år i ansvarsförsäkring.","Nivå på beloppsgräns per skada och år i ansvarsförsäkring.","Nivå på beloppsgräns per skada och år i ansvarsförsäkring.","Nivå på beloppsgräns per skada och år i ansvarsförsäkring.","Nivå på beloppsgräns per skada och år i ansvarsförsäkring.","Nivå på beloppsgräns per skada och år i ansvarsförsäkring.","Nivå på beloppsgräns per skada och år i ansvarsförsäkring.","Nivå på beloppsgräns per skada och år i ansvarsförsäkring."," "]
[null,null,null,"Välj utvärdering.....",null,"Krav 5",null,null,null,"Jämtlands län",null,{"$f":"IF('1 Specifikation'!C98=\"Ja\",'1 Specifikation'!B98,\"\")","v":""},{"$f":"IFERROR(INDEX(TblValdaTjänster,SMALL(IF(TblValdaTjänster<>\"\",ROW(TblValdaTjänster)-ROW(L$56)+1),ROWS(M$56:M62))),\"\")","v":""},"Återrapportering, uppföljning",null,null,"Krav på extra utrustning i bevakningsfordon (t.ex. portabel defibrillator, material för enklare skyddstäckning).","Krav relaterade till behov vid arrestantbevakning.","Krav på extra utrustning i bevakningsfordon (t.ex. portabel defibrillator, material för enklare skyddstäckning).","Krav på extra utrustning i bevakningsfordon (t.ex. portabel defibrillator, material för enklare skyddstäckning).",null,null,null,null,null,null,null,null," "]
[null,null,null,"Alt. 1. Lägsta pris",null,"Krav 6",null,null,null,"Jönköpings län",null,{"$f":"IF('1 Specifikation'!C103=\"Ja\",'1 Specifikation'!B103,\"\")","v":""},{"$f":"IFERROR(INDEX(TblValdaTjänster,SMALL(IF(TblValdaTjänster<>\"\",ROW(TblValdaTjänster)-ROW(L$56)+1),ROWS(M$56:M63))),\"\")","v":""},"Eget kriterium",null,null,null,null,"Krav relaterade till behov vid arrestantbevakning.","Krav på inställelsetid kortare än 60 minuter, samt närvaro längre än 30 min på objektet.",null,null,null,null,null,null,null,null," "]
[null,null,null,"Alt. 2. Relativ viktning - summan av viktade poäng för pris och uppfyllda bör-krav",null,"Se bilaga",null,"TblLarmTyp",null,"Kalmar län",null,{"$f":"IF('1 Specifikation'!C108=\"Ja\",'1 Specifikation'!B108,\"\")","v":""},{"$f":"IFERROR(INDEX(TblValdaTjänster,SMALL(IF(TblValdaTjänster<>\"\",ROW(TblValdaTjänster)-ROW(L$56)+1),ROWS(M$56:M64))),\"\")","v":""},null,null,null,null,null,null,null,null,null,null,null,null,null,null,null," "]
[null,null,null,"Alt. 3. Mervärdesmodell - prisavdrag för uppfyllda bör-krav",null,null,null,"Inbrottslarm",null,"Kronobergs län",null,{"$f":"IF('1 Specifikation'!C113=\"Ja\",'1 Specifikation'!B113,\"\")","v":""},{"$f":"IFERROR(INDEX(TblValdaTjänster,SMALL(IF(TblValdaTjänster<>\"\",ROW(TblValdaTjänster)-ROW(L$56)+1),ROWS(M$56:M65))),\"\")","v":""}]
[null,null,null,"Alt. 4. Annan utvärderingsmodell",null,"ValBilaga",null,"Personlarm",null,"Norrbottens län",null,{"$f":"IF('1 Specifikation'!C117=\"Ja\",'1 Specifikation'!B117,\"\")","v":""},{"$f":"IFERROR(INDEX(TblValdaTjänster,SMALL(IF(TblValdaTjänster<>\"\",ROW(TblValdaTjänster)-ROW(L$56)+1),ROWS(M$56:M66))),\"\")","v":""}]
[null,null,null,null,null,null,null,null,null,"Skåne län",null,{"$f":"IF('1 Specifikation'!C121=\"Ja\",'1 Specifikation'!B121,\"\")","v":""},{"$f":"IFERROR(INDEX(TblValdaTjänster,SMALL(IF(TblValdaTjänster<>\"\",ROW(TblValdaTjänster)-ROW(L$56)+1),ROWS(M$56:M67))),\"\")","v":""}]
[null,null,null,null,null,"Ja",null,null,null,"Stockholms län",null,{"$f":"IF('1 Specifikation'!C125=\"Ja\",'1 Specifikation'!B125,\"\")","v":""},{"$f":"IFERROR(INDEX(TblValdaTjänster,SMALL(IF(TblValdaTjänster<>\"\",ROW(TblValdaTjänster)-ROW(L$56)+1),ROWS(M$56:M68))),\"\")","v":""}]
[null,null,null,null,null,null,null,"TblRyck",null,"Södermanlands län"]
[null,null,null,null,null,"IngårJaNej",null,"En väktare",null,"Uppsala län"]
[null,null,null,null,null,"Ja",null,"Två väktare",null,"Värmlands län"]
[null,null,null,null,null,"Nej",null,null,null,"Västerbottens län"]
[null,null,null,null,null,null,null,"TblDefInst",null,"Västernorrlands län"]
[null,null,null,null,null,"TblOrdVaktTyp",null,"Väktare framme vid objektet",null,"Västmanlands län"]
[null,null,null,null,null,"Ronderande",null,"Väktare inne i objektet",null,"Västra Götalands län"]
[null,null,null,null,null,"Stationär",null,null,null,"Örebro län"]
[null,null,null,null,null,null,null,null,null,"Östergötlands län"]
[]
[null,null,"TblLeverantörer"]
[null,null,"Juridiskt Namn","Förvaltningens avtalsnummer ","Organisations-nummer","Adress","Postnummer","Postadress","Telefon Växel","Telefon kundtjänst","Hemsida","Kontaktperson ","Telefon","E-post kontaktperson","Befattning Kontaktperson","Fax","E-post Gruppbrevlåda"]
[]
[null,null,{"$f":"\"Välj \"&C80","v":"Välj Juridiskt Namn"},{"$f":"D80","v":"Förvaltningens avtalsnummer "},"Organisations-nummer","Adress","Postnummer","Postadress","Telefon Växel","Telefon kundtjänst","Hemsida","Kontaktperson ","Telefon","E-post kontaktperson","Befattning Kontaktperson","Fax","E-post Gruppbrevlåda"]
[null,null,"Välj Juridiskt Namn 2","Förvaltningens avtalsnummer  2","Organisations-nummer 2","Adress 2","Postnummer 2","Postadress 2","Telefon Växel 2","Telefon kundtjänst 2","Hemsida 2","Kontaktperson  2","Telefon 2","E-post kontaktperson 2","Befattning Kontaktperson 2","Fax 2","E-post Gruppbrevlåda 2"]
[]
[]
[]
[]
[]
[]
[]
[]
[]
[]
[]
[]
[]
[]
[]
[null,null,null,null,"TblKrv2",30,{"$f":"F99+1","v":31},{"$f":"G99+1","v":32},33,34,35,36,37,38,39,40,41,42,43,44,45,46,47,48,49,50,51,52,53]
[null,null,"TblSpecTjnstr",null,{"$f":"J29","v":""},{"$f":"INDIRECT(\"J\"&F99)","v":""},{"$f":"INDIRECT(\"J\"&G99)","v":""},"","","","","","","","","","","","",{"$f":"INDIRECT(\"J\"&T99)","v":""},"","","","","","","","",""]
[null,null,"Välj Vara/Tjanst",null,"Delområde 1/Vara/Tjanst 1/Krav1","Delområde 1/Vara/Tjanst 2/Krav1","Delområde 1/Vara/Tjanst 3/Krav1","Delområde 1/Vara/Tjanst 4/Krav1","Delområde 1/Vara/Tjanst 5/Krav1","Delområde 1/Vara/Tjanst 6/Krav1","Delområde 1/Vara/Tjanst 7/Krav1","Delområde 1/Vara/Tjanst 8/Krav1","Delområde 1/Vara/Tjanst 9/Krav1","Delområde 1/Vara/Tjanst 10/Krav1","Delområde 1/Vara/Tjanst 11/Krav1","Delområde 1/Vara/Tjanst 12/Krav1","Delområde 1/Vara/Tjanst 13/Krav1","Delområde 1/Vara/Tjanst 14/Krav1","Delområde 1/Vara/Tjanst 15/Krav1","Delområde 1/Vara/Tjanst 16/Krav1","Delområde 1/Vara/Tjanst 17/Krav1","Delområde 1/Vara/Tjanst 18/Krav1","Delområde 1/Vara/Tjanst 19/Krav1","Delområde 1/Vara/Tjanst 20/Krav1","Delområde 1/Vara/Tjanst 21/Krav1","Delområde 1/Vara/Tjanst 22/Krav1","Delområde 1/Vara/Tjanst 23/Krav1","Delområde 1/Vara/Tjanst 24/Krav1","Delområde 1/Vara/Tjanst 25/Krav1"]
[null,null,{"$f":"IF('1 Specifikation'!B174=\"\",\"\",'1 Specifikation'!B174)","v":"Välj tjänst"},null,"Delområde 1/Vara/Tjanst 1/Krav2","Delområde 1/Vara/Tjanst 2/Krav2","Delområde 1/Vara/Tjanst 3/Krav2","Delområde 1/Vara/Tjanst 4/Krav2","Delområde 1/Vara/Tjanst 5/Krav2","Delområde 1/Vara/Tjanst 6/Krav2","Delområde 1/Vara/Tjanst 7/Krav2","Delområde 1/Vara/Tjanst 8/Krav2","Delområde 1/Vara/Tjanst 9/Krav2","Delområde 1/Vara/Tjanst 10/Krav2","Delområde 1/Vara/Tjanst 11/Krav2","Delområde 1/Vara/Tjanst 12/Krav2","Delområde 1/Vara/Tjanst 13/Krav2","Delområde 1/Vara/Tjanst 14/Krav2","Delområde 1/Vara/Tjanst 15/Krav2","Delområde 1/Vara/Tjanst 16/Krav2","Delområde 1/Vara/Tjanst 17/Krav2","Delområde 1/Vara/Tjanst 18/Krav2","Delområde 1/Vara/Tjanst 19/Krav2","Delområde 1/Vara/Tjanst 20/Krav2","Delområde 1/Vara/Tjanst 21/Krav2","Delområde 1/Vara/Tjanst 22/Krav2","Delområde 1/Vara/Tjanst 23/Krav2","Delområde 1/Vara/Tjanst 24/Krav2","Delområde 1/Vara/Tjanst 25/Krav2"]
[null,null,{"$f":"IF('1 Specifikation'!B175=\"\",\"\",'1 Specifikation'!B175)","v":"Välj tjänst"},null,"Delområde 1/Vara/Tjanst 1/Krav3","Delområde 1/Vara/Tjanst 2/Krav3","Delområde 1/Vara/Tjanst 3/Krav3","Delområde 1/Vara/Tjanst 4/Krav3","Delområde 1/Vara/Tjanst 5/Krav3","Delområde 1/Vara/Tjanst 6/Krav3","Delområde 1/Vara/Tjanst 7/Krav3","Delområde 1/Vara/Tjanst 8/Krav3","Delområde 1/Vara/Tjanst 9/Krav3","Delområde 1/Vara/Tjanst 10/Krav3","Delområde 1/Vara/Tjanst 11/Krav3","Delområde 1/Vara/Tjanst 12/Krav3","Delområde 1/Vara/Tjanst 13/Krav3","Delområde 1/Vara/Tjanst 14/Krav3","Delområde 1/Vara/Tjanst 15/Krav3","Delområde 1/Vara/Tjanst 16/Krav3","Delområde 1/Vara/Tjanst 17/Krav3","Delområde 1/Vara/Tjanst 18/Krav3","Delområde 1/Vara/Tjanst 19/Krav3","Delområde 1/Vara/Tjanst 20/Krav3","Delområde 1/Vara/Tjanst 21/Krav3","Delområde 1/Vara/Tjanst 22/Krav3","Delområde 1/Vara/Tjanst 23/Krav3","Delområde 1/Vara/Tjanst 24/Krav3","Delområde 1/Vara/Tjanst 25/Krav3"]
[null,null,{"$f":"IF('1 Specifikation'!B176=\"\",\"\",'1 Specifikation'!B176)","v":"Välj tjänst"},null,"Delområde 1/Vara/Tjanst 1/Krav4","Delområde 1/Vara/Tjanst 2/Krav4","Delområde 1/Vara/Tjanst 3/Krav4","Delområde 1/Vara/Tjanst 4/Krav4","Delområde 1/Vara/Tjanst 5/Krav4","Delområde 1/Vara/Tjanst 6/Krav4","Delområde 1/Vara/Tjanst 7/Krav4","Delområde 1/Vara/Tjanst 8/Krav4","Delområde 1/Vara/Tjanst 9/Krav4","Delområde 1/Vara/Tjanst 10/Krav4","Delområde 1/Vara/Tjanst 11/Krav4","Delområde 1/Vara/Tjanst 12/Krav4","Delområde 1/Vara/Tjanst 13/Krav4","Delområde 1/Vara/Tjanst 14/Krav4","Delområde 1/Vara/Tjanst 15/Krav4","Delområde 1/Vara/Tjanst 16/Krav4","Delområde 1/Vara/Tjanst 17/Krav4","Delområde 1/Vara/Tjanst 18/Krav4","Delområde 1/Vara/Tjanst 19/Krav4","Delområde 1/Vara/Tjanst 20/Krav4","Delområde 1/Vara/Tjanst 21/Krav4","Delområde 1/Vara/Tjanst 22/Krav4","Delområde 1/Vara/Tjanst 23/Krav4","Delområde 1/Vara/Tjanst 24/Krav4","Delområde 1/Vara/Tjanst 25/Krav4"]
[null,null,{"$f":"IF('1 Specifikation'!B177=\"\",\"\",'1 Specifikation'!B177)","v":"Välj tjänst"},null,"Delområde 1/Vara/Tjanst 1/Krav5","Delområde 1/Vara/Tjanst 2/Krav5","Delområde 1/Vara/Tjanst 3/Krav5","Delområde 1/Vara/Tjanst 4/Krav5","Delområde 1/Vara/Tjanst 5/Krav5","Delområde 1/Vara/Tjanst 6/Krav5","Delområde 1/Vara/Tjanst 7/Krav5","Delområde 1/Vara/Tjanst 8/Krav5","Delområde 1/Vara/Tjanst 9/Krav5","Delområde 1/Vara/Tjanst 10/Krav5","Delområde 1/Vara/Tjanst 11/Krav5","Delområde 1/Vara/Tjanst 12/Krav5","Delområde 1/Vara/Tjanst 13/Krav5","Delområde 1/Vara/Tjanst 14/Krav5","Delområde 1/Vara/Tjanst 15/Krav5","Delområde 1/Vara/Tjanst 16/Krav5","Delområde 1/Vara/Tjanst 17/Krav5","Delområde 1/Vara/Tjanst 18/Krav5","Delområde 1/Vara/Tjanst 19/Krav5","Delområde 1/Vara/Tjanst 20/Krav5","Delområde 1/Vara/Tjanst 21/Krav5","Delområde 1/Vara/Tjanst 22/Krav5","Delområde 1/Vara/Tjanst 23/Krav5","Delområde 1/Vara/Tjanst 24/Krav5","Delområde 1/Vara/Tjanst 25/Krav5"]
[null,null,{"$f":"IF('1 Specifikation'!B178=\"\",\"\",'1 Specifikation'!B178)","v":"Välj tjänst"},null,"Delområde 1/Vara/Tjanst 1/Krav6","Delområde 1/Vara/Tjanst 2/Krav6","Delområde 1/Vara/Tjanst 3/Krav6","Delområde 1/Vara/Tjanst 4/Krav6","Delområde 1/Vara/Tjanst 5/Krav6","Delområde 1/Vara/Tjanst 6/Krav6","Delområde 1/Vara/Tjanst 7/Krav6","Delområde 1/Vara/Tjanst 8/Krav6","Delområde 1/Vara/Tjanst 9/Krav6","Delområde 1/Vara/Tjanst 10/Krav6","Delområde 1/Vara/Tjanst 11/Krav6","Delområde 1/Vara/Tjanst 12/Krav6","Delområde 1/Vara/Tjanst 13/Krav6","Delområde 1/Vara/Tjanst 14/Krav6","Delområde 1/Vara/Tjanst 15/Krav6","Delområde 1/Vara/Tjanst 16/Krav6","Delområde 1/Vara/Tjanst 17/Krav6","Delområde 1/Vara/Tjanst 18/Krav6","Delområde 1/Vara/Tjanst 19/Krav6","Delområde 1/Vara/Tjanst 20/Krav6","Delområde 1/Vara/Tjanst 21/Krav6","Delområde 1/Vara/Tjanst 22/Krav6","Delområde 1/Vara/Tjanst 23/Krav6","Delområde 1/Vara/Tjanst 24/Krav6","Delområde 1/Vara/Tjanst 25/Krav6"]
[null,null,{"$f":"IF('1 Specifikation'!B179=\"\",\"\",'1 Specifikation'!B179)","v":"Välj tjänst"},null,"Delområde 1/Vara/Tjanst 1/Krav7","Delområde 1/Vara/Tjanst 2/Krav7","Delområde 1/Vara/Tjanst 3/Krav7","Delområde 1/Vara/Tjanst 4/Krav7","Delområde 1/Vara/Tjanst 5/Krav7","Delområde 1/Vara/Tjanst 6/Krav7","Delområde 1/Vara/Tjanst 7/Krav7","Delområde 1/Vara/Tjanst 8/Krav7","Delområde 1/Vara/Tjanst 9/Krav7","Delområde 1/Vara/Tjanst 10/Krav7","Delområde 1/Vara/Tjanst 11/Krav7","Delområde 1/Vara/Tjanst 12/Krav7","Delområde 1/Vara/Tjanst 13/Krav7","Delområde 1/Vara/Tjanst 14/Krav7","Delområde 1/Vara/Tjanst 15/Krav7","Delområde 1/Vara/Tjanst 16/Krav7","Delområde 1/Vara/Tjanst 17/Krav7","Delområde 1/Vara/Tjanst 18/Krav7","Delområde 1/Vara/Tjanst 19/Krav7","Delområde 1/Vara/Tjanst 20/Krav7","Delområde 1/Vara/Tjanst 21/Krav7","Delområde 1/Vara/Tjanst 22/Krav7","Delområde 1/Vara/Tjanst 23/Krav7","Delområde 1/Vara/Tjanst 24/Krav7","Delområde 1/Vara/Tjanst 25/Krav7"]
[null,null,{"$f":"IF('1 Specifikation'!B180=\"\",\"\",'1 Specifikation'!B180)","v":"Välj tjänst"},null,"Delområde 1/Vara/Tjanst 1/Krav8","Delområde 1/Vara/Tjanst 2/Krav8","Delområde 1/Vara/Tjanst 3/Krav8","Delområde 1/Vara/Tjanst 4/Krav8","Delområde 1/Vara/Tjanst 5/Krav8","Delområde 1/Vara/Tjanst 6/Krav8","Delområde 1/Vara/Tjanst 7/Krav8","Delområde 1/Vara/Tjanst 8/Krav8","Delområde 1/Vara/Tjanst 9/Krav8","Delområde 1/Vara/Tjanst 10/Krav8","Delområde 1/Vara/Tjanst 11/Krav8","Delområde 1/Vara/Tjanst 12/Krav8","Delområde 1/Vara/Tjanst 13/Krav8","Delområde 1/Vara/Tjanst 14/Krav8","Delområde 1/Vara/Tjanst 15/Krav8","Delområde 1/Vara/Tjanst 16/Krav8","Delområde 1/Vara/Tjanst 17/Krav8","Delområde 1/Vara/Tjanst 18/Krav8","Delområde 1/Vara/Tjanst 19/Krav8","Delområde 1/Vara/Tjanst 20/Krav8","Delområde 1/Vara/Tjanst 21/Krav8","Delområde 1/Vara/Tjanst 22/Krav8","Delområde 1/Vara/Tjanst 23/Krav8","Delområde 1/Vara/Tjanst 24/Krav8","Delområde 1/Vara/Tjanst 25/Krav8"]
[null,null,{"$f":"IF('1 Specifikation'!B181=\"\",\"\",'1 Specifikation'!B181)","v":"Välj tjänst"},null,"Delområde 1/Vara/Tjanst 1/Krav9","Delområde 1/Vara/Tjanst 2/Krav9","Delområde 1/Vara/Tjanst 3/Krav9","Delområde 1/Vara/Tjanst 4/Krav9","Delområde 1/Vara/Tjanst 5/Krav9","Delområde 1/Vara/Tjanst 6/Krav9","Delområde 1/Vara/Tjanst 7/Krav9","Delområde 1/Vara/Tjanst 8/Krav9","Delområde 1/Vara/Tjanst 9/Krav9","Delområde 1/Vara/Tjanst 10/Krav9","Delområde 1/Vara/Tjanst 11/Krav9","Delområde 1/Vara/Tjanst 12/Krav9","Delområde 1/Vara/Tjanst 13/Krav9","Delområde 1/Vara/Tjanst 14/Krav9","Delområde 1/Vara/Tjanst 15/Krav9","Delområde 1/Vara/Tjanst 16/Krav9","Delområde 1/Vara/Tjanst 17/Krav9","Delområde 1/Vara/Tjanst 18/Krav9","Delområde 1/Vara/Tjanst 19/Krav9","Delområde 1/Vara/Tjanst 20/Krav9","Delområde 1/Vara/Tjanst 21/Krav9","Delområde 1/Vara/Tjanst 22/Krav9","Delområde 1/Vara/Tjanst 23/Krav9","Delområde 1/Vara/Tjanst 24/Krav9","Delområde 1/Vara/Tjanst 25/Krav9"]
[null,null,{"$f":"IF('1 Specifikation'!B182=\"\",\"\",'1 Specifikation'!B182)","v":"Välj tjänst"}]
[null,null,{"$f":"IF('1 Specifikation'!B183=\"\",\"\",'1 Specifikation'!B183)","v":"Välj tjänst"},null,{"$f":"IFERROR(RIGHT(INDIRECT(\"C\"&E112),LEN(INDIRECT(\"C\"&E112))-6),\"\")","v":"jänst"},"jänst","jänst","jänst","jänst","jänst","jänst","jänst","jänst","jänst","jänst","jänst","jänst","jänst","jänst","jänst","jänst","jänst","jänst","jänst"]
[null,null,{"$f":"IF('1 Specifikation'!B185=\"\",\"\",'1 Specifikation'!B185)","v":"Välj tjänst"},null,102,{"$f":"E112+1","v":103},{"$f":"F112+1","v":104},105,106,107,108,109,110,111,112,113,114,115,116,117,118,119,120,121,122]
[null,null,{"$f":"IF('1 Specifikation'!B186=\"\",\"\",'1 Specifikation'!B186)","v":"Välj tjänst"},null,"TblKrvRes1","TblKrvRes2","TblKrvRes3","TblKrvRes4","TblKrvRes5","TblKrvRes6","TblKrvRes7","TblKrvRes8","TblKrvRes9","TblKrvRes10","TblKrvRes11","TblKrvRes12","TblKrvRes13","TblKrvRes14","TblKrvRes15","TblKrvRes16","TblKrvRes17","TblKrvRes18","TblKrvRes19","TblKrvRes20"]
[null,null,{"$f":"IF('1 Specifikation'!B187=\"\",\"\",'1 Specifikation'!B187)","v":"Välj tjänst"},null,{"$f":"IFERROR(INDEX($E101:$AC101,MATCH(E$111,$E$100:$AC$100,0)),\"\")","v":""},{"$f":"IFERROR(INDEX($E101:$AC101,MATCH(F$111,$E$100:$AC$100,0)),\"\")","v":""},"","","","","","","","","","","","","","","","","","",{"$f":"IFERROR(RIGHT(INDIRECT(\"C\"&Y112),LEN(INDIRECT(\"C\"&Y112))-6),\"\")","v":""}]
[null,null,{"$f":"IF('1 Specifikation'!B188=\"\",\"\",'1 Specifikation'!B188)","v":"Välj tjänst"},null,{"$f":"IFERROR(INDEX($E102:$AC102,MATCH(E$111,$E$100:$AC$100,0)),\"\")","v":""},"","","","","","","","","","","","","","","","","","",""]
[null,null,{"$f":"IF('1 Specifikation'!B189=\"\",\"\",'1 Specifikation'!B189)","v":"Välj tjänst"},null,"","","","","","","","","","","","","","","","","","","",""]
[null,null,{"$f":"IF('1 Specifikation'!B190=\"\",\"\",'1 Specifikation'!B190)","v":"Välj tjänst"},null,"","","","","","","","","","","","","","","","","","","",""]
[null,null,{"$f":"IF('1 Specifikation'!B191=\"\",\"\",'1 Specifikation'!B191)","v":"Välj tjänst"},null,"","","","","","","","","","","","","","","","","","","",""]
[null,null,{"$f":"IF('1 Specifikation'!B192=\"\",\"\",'1 Specifikation'!B192)","v":"Välj tjänst"},null,"","","","","","","","","","","","","","","","","","","",""]
[null,null,{"$f":"IF('1 Specifikation'!B193=\"\",\"\",'1 Specifikation'!B193)","v":"Välj tjänst"},null,"","","","","","","","","","","","","","","","","","","",""]
[null,null,{"$f":"IF('1 Specifikation'!B194=\"\",\"\",'1 Specifikation'!B194)","v":"Välj tjänst"},null,"","","","","","","","","","","","","","","","","","","",""]
[null,null,{"$f":"IF('1 Specifikation'!C127=\"\",\"\",'1 Specifikation'!B127&\" - \"&'1 Specifikation'!C127)","v":""},null,"","","","","","","","","","","","","","","","","","","",""]

{"sheet":"SysAdmin","index":5,"n_rows":9,"n_cols":5,"rows_kept":9,"cut":false,"hidden":true,"merged":[]}
["LockStatus",false]
["UKey","x",null,2,{"$f":"INDEX(E3:E5,D2)","v":"Avroppsblanketten är nu upplåst, klicka här för att låsa avropsblanketten."}]
["pkey","Förvaltning21",null,null,"Adminläge! Klicka här för att låsa vita celler."]
["Wkey","Förvaltning21","RGB",null,"Avroppsblanketten är nu upplåst, klicka här för att låsa avropsblanketten."]
["YColor"," ","255, 255, 153",null,"Avroppsblanketten är nu låst, klicka här för att låsa upp avropsblanketten."]
[null,null,"204, 255, 255"]
[null,null,"150, 150, 150",null,"Grund för tilldelning av kontrakt & Utvärderingsmodell"]
[null,null,"204, 255, 204",null,{"$f":"VALUE(IF(ISNUMBER(SEARCH(\"2\",DpDwnTDV))=TRUE,\"2\",\"1\"))","v":2}]
[null,null,"250, 191, 143",null,{"$f":"\"Alt\"&IF(ISNUMBER(SEARCH(\"1\",DpDwnUtvddrop))=TRUE,\"1\",IF(ISNUMBER(SEARCH(\"2\",DpDwnUtvddrop))=TRUE,\"2\",IF(ISNUMBER(SEARCH(\"3\",DpDwnUtvddrop))=TRUE,\"3\",IF(ISNUMBER(SEARCH(\"4\",DpDwnUtvddrop))=TRUE,\"4\"))))","v":"AltFALSE"}]